Workbook

Sheet Dashboard
A1: Sent this month | D1: 7253 | F1: Left process at stage 1: | J1: 1686 | L1: Left process at stage 2: | P1: 904 | R1: Exited process: | V1: 2127 | X1: Settled: | AA1: 774
A3: Δ from last month: | D3: 893 | F3: Δ from last month: | J3: 267 | L3: Δ from last month: | P3: 62 | R3: Δ from last month: | V3: 239 | X3: Δ from last month: | AA3: 88
A5: Rolling 12 months: | D5: 91077 | F5: Rolling 12 months: | J5: 21017 | L5: Rolling 12 months: | P5: 12724 | R5: Rolling 12 months: | V5: 26624 | X5: Rolling 12 months: | AA5: 8611
A7: Left Process Breakdowns - Stage 1:
A9: Reason | H9: This Month | J9: Last Month | L9: Δ
A10: Liability Decision Timeout | H10: 1364 | J10: 1128 | L10: 236
A11: Other | H11: 322 | J11: 291 | L11: 31
A12: Total | H12: 1686 | J12: 1419 | L12: 267
A13: Left Process Breakdowns - Stage 2:
A15: Reason | H15: This Month | J15: Last Month | L15: Δ
A16: Interim payment more than £1,000 not agreed: | H16: 1 | J16: 1 | L16: 0
A17: Settlement pack repudiated: | H17: 6 | J17: 3 | L17: 3
A18: Settlement pack timeout: | H18: 225 | J18: 220 | L18: 5
A19: No agreement; Court Proceedings pack: | H19: 672 | J19: 618 | L19: 54
A20: Total | H20: 904 | J20: 842 | L20: 62

Sheet Backing Sheet Data
A1: Reporting date | B1: 2025-09-01 | R1: * Figures refreshed from May 23 - 01/04/25
A2: Previous month | B2: 2025-08-01
R3: Period | S3: CNFs Sent | T3: CNFs left at Stage 1 | U3: Stage 2 Exit | V3: Exit process | W3: Court Pack | X3: Settled claims | Y3: General Damages
A4: Rolling 13 CNFs sent | E4: Average General Damages chart data | R4: 2010-05-01 | S4: 10467 | T4: 494 | U4: 0 | V4: 0 | W4: 0 | X4: 3 | Y4: 1216.666666
R5: 2010-06-01 | S5: 38405 | T5: 8565 | U5: 10 | V5: 0 | W5: 0 | X5: 325 | Y5: 1029.243076
A6: Period | B6: Rolling 13 Sent | E6: Row Labels | F6: Ave General Damages | R6: 2010-07-01 | S6: 47904 | T6: 17692 | U6: 147 | V6: 0 | W6: 0 | X6: 1156 | Y6: 1266.971444
A7: 2024-09-01 | B7: 94160 | E7: 2024-09-01 | F7: 6477.583862 | R7: 2010-08-01 | S7: 49580 | T7: 20078 | U7: 637 | V7: 0 | W7: 9 | X7: 3109 | Y7: 1488.610151
A8: 2024-10-01 | B8: 95394 | E8: 2024-10-01 | F8: 6923.560679 | R8: 2010-09-01 | S8: 56926 | T8: 23485 | U8: 1249 | V8: 0 | W8: 335 | X8: 5579 | Y8: 1598.794205
A9: 2024-11-01 | B9: 94534 | E9: 2024-11-01 | F9: 6713.029802 | R9: 2010-10-01 | S9: 57967 | T9: 25210 | U9: 1628 | V9: 0 | W9: 1708 | X9: 7175 | Y9: 1734.369194
A10: 2024-12-01 | B10: 92832 | E10: 2024-12-01 | F10: 7036.349487 | R10: 2010-11-01 | S10: 65286 | T10: 28094 | U10: 2227 | V10: 0 | W10: 2083 | X10: 10021 | Y10: 1748.922972
A11: 2025-01-01 | B11: 94197 | E11: 2025-01-01 | F11: 6547.547545 | R11: 2010-12-01 | S11: 51771 | T11: 27567 | U11: 2539 | V11: 0 | W11: 268 | X11: 10687 | Y11: 1730.439213
A12: 2025-02-01 | B12: 93426 | E12: 2025-02-01 | F12: 6697.964949 | R12: 2011-01-01 | S12: 66395 | T12: 23279 | U12: 2020 | V12: 0 | W12: 448 | X12: 13583 | Y12: 1747.046681
A13: 2025-03-01 | B13: 92958 | E13: 2025-03-01 | F13: 6539.189572 | R13: 2011-02-01 | S13: 63216 | T13: 29094 | U13: 2043 | V13: 0 | W13: 450 | X13: 15646 | Y13: 1785.893702
A14: 2025-04-01 | B14: 93121 | E14: 2025-04-01 | F14: 6375.824495 | R14: 2011-03-01 | S14: 67667 | T14: 31396 | U14: 2433 | V14: 26 | W14: 750 | X14: 20140 | Y14: 1801.133454
A15: 2025-05-01 | B15: 92426 | E15: 2025-05-01 | F15: 6499.414991 | R15: 2011-04-01 | S15: 54185 | T15: 22478 | U15: 1885 | V15: 2206 | W15: 594 | X15: 16306 | Y15: 1839.733078
A16: 2025-06-01 | B16: 92455 | E16: 2025-06-01 | F16: 7003.106433 | R16: 2011-05-01 | S16: 64722 | T16: 23751 | U16: 2030 | V16: 4614 | W16: 710 | X16: 18560 | Y16: 1871.737888
A17: 2025-07-01 | B17: 92796 | E17: 2025-07-01 | F17: 6839.777955 | R17: 2011-06-01 | S17: 66783 | T17: 26464 | U17: 2250 | V17: 5641 | W17: 801 | X17: 20923 | Y17: 1867.249937
A18: 2025-08-01 | B18: 90948 | E18: 2025-08-01 | F18: 6751.701528 | R18: 2011-07-01 | S18: 64567 | T18: 24356 | U18: 2052 | V18: 5406 | W18: 934 | X18: 20450 | Y18: 1896.707958
A19: 2025-09-01 | B19: 91077 | E19: 2025-09-01 | F19: 5885.983423 | R19: 2011-08-01 | S19: 64326 | T19: 25819 | U19: 1902 | V19: 6289 | W19: 873 | X19: 20891 | Y19: 1909.357189
E20: Grand Total | F20: 86291.03472 | R20: 2011-09-01 | S20: 65785 | T20: 24177 | U20: 1658 | V20: 5963 | W20: 867 | X20: 21695 | Y20: 1928.945236
R21: 2011-10-01 | S21: 68190 | T21: 24463 | U21: 1471 | V21: 6639 | W21: 842 | X21: 21088 | Y21: 1953.441882
B22: 84156 | R22: 2011-11-01 | S22: 71093 | T22: 26428 | U22: 1536 | V22: 7470 | W22: 845 | X22: 23022 | Y22: 1950.818934
A23: Exit Process Reason | B23: Total | R23: 2011-12-01 | S23: 57326 | T23: 22991 | U23: 1630 | V23: 6373 | W23: 670 | X23: 18466 | Y23: 1932.120264
A24: Claim requires further investigation | B24: 38233 | R24: 2012-01-01 | S24: 72724 | T24: 22770 | U24: 1339 | V24: 7711 | W24: 857 | X24: 22313 | Y24: 1967.239018
A25: Other | B25: 28920 | R25: 2012-02-01 | S25: 69809 | T25: 25242 | U25: 1739 | V25: 8982 | W25: 751 | X25: 23015 | Y25: 1956.70998
A26: Wrong Portal | B26: 8683 | R26: 2012-03-01 | S26: 69037 | T26: 25697 | U26: 1779 | V26: 9379 | W26: 856 | X26: 25724 | Y26: 1983.518959
A27: Duplicated claim | B27: 2612 | I27: Left Process Breakdown | R27: 2012-04-01 | S27: 62450 | T27: 21314 | U27: 1589 | V27: 8158 | W27: 763 | X27: 21884 | Y27: 1988.494681
A28: Value of claim exceeds the upper limit | B28: 1853 | R28: 2012-05-01 | S28: 71005 | T28: 25541 | U28: 1678 | V28: 9858 | W28: 866 | X28: 25577 | Y28: 1989.041233
A29: Stage 1 costs not paid on time | B29: 1104 | I29: This Month LDT | J29: This Month Other Liability | K29: This Month Interim Payment Not Agreed | L29: This Month Repudiated | M29: This Month Timeout | N29: This Month Court Proceedings | R29: 2012-06-01 | S29: 62501 | T29: 22180 | U29: 1594 | V29: 8645 | W29: 746 | X29: 20352 | Y29: 1982.574425
A30: Incomplete information provided on CNF | B30: 1016 | I30: 1364 | J30: 322 | K30: 1 | L30: 6 | M30: 225 | N30: 672 | R30: 2012-07-01 | S30: 70976 | T30: 26065 | U30: 1674 | V30: 10933 | W30: 864 | X30: 23296 | Y30: 2007.200811
A31: Claim is too complex for process | B31: 672 | R31: 2012-08-01 | S31: 67753 | T31: 25025 | U31: 1777 | V31: 10848 | W31: 867 | X31: 22097 | Y31: 1992.352598
A32: Withdrawal of offer | B32: 458 | R32: 2012-09-01 | S32: 67342 | T32: 22271 | U32: 1666 | V32: 10583 | W32: 3482 | X32: 20228 | Y32: 1992.967576
A33: Withdrawl of claim | B33: 324 | R33: 2012-10-01 | S33: 81060 | T33: 28025 | U33: 1967 | V33: 12507 | W33: 932 | X33: 23908 | Y33: 1994.961169
A34: Interim Payment request not answered and/or paid on time | B34: 211 | R34: 2012-11-01 | S34: 77992 | T34: 26162 | U34: 1396 | V34: 12674 | W34: 903 | X34: 24170 | Y34: 2016.709201
A35: Interim Payment partial offer not accepted | B35: 34 | R35: 2012-12-01 | S35: 60190 | T35: 23165 | U35: 1165 | V35: 10270 | W35: 833 | X35: 17586 | Y35: 2035.591698
A36: Interim payment for child claimant | B36: 20 | R36: 2013-01-01 | S36: 81349 | T36: 24795 | U36: 1148 | V36: 12569 | W36: 939 | X36: 23449 | Y36: 2055.160441
A37: Value of claim below £1,000 | B37: 16 | R37: 2013-02-01 | S37: 72820 | T37: 24810 | U37: 1086 | V37: 12599 | W37: 879 | X37: 21402 | Y37: 2083.04
R38: 2013-03-01 | S38: 90924 | T38: 23706 | U38: 1157 | V38: 13113 | W38: 985 | X38: 21950 | Y38: 2100.967706
R39: 2013-04-01 | S39: 78812 | T39: 29710 | U39: 1141 | V39: 15792 | W39: 1109 | X39: 22528 | Y39: 2099.223125
R40: 2013-05-01 | S40: 54076 | T40: 22715 | U40: 1315 | V40: 12290 | W40: 1231 | X40: 22072 | Y40: 2136.024392
R41: 2013-06-01 | S41: 58746 | T41: 15847 | U41: 1051 | V41: 10657 | W41: 1210 | X41: 20109 | Y41: 2206.315955
R42: 2013-07-01 | S42: 72312 | T42: 18884 | U42: 1178 | V42: 12827 | W42: 1493 | X42: 22263 | Y42: 2234.743275
R43: 2013-08-01 | S43: 57287 | T43: 18093 | U43: 881 | V43: 11755 | W43: 1651 | X43: 18989 | Y43: 2293.475094
R44: 2013-09-01 | S44: 62232 | T44: 16494 | U44: 958 | V44: 11238 | W44: 1530 | X44: 19131 | Y44: 2309.026649
R45: 2013-10-01 | S45: 68731 | T45: 18794 | U45: 1043 | V45: 12043 | W45: 1654 | X45: 21136 | Y45: 2332.592444
R46: 2013-11-01 | S46: 66498 | T46: 17041 | U46: 844 | V46: 11525 | W46: 1642 | X46: 20238 | Y46: 2390.605935
R47: 2013-12-01 | S47: 56200 | T47: 16790 | U47: 1046 | V47: 10894 | W47: 1545 | X47: 16293 | Y47: 2404.856563
R48: 2014-01-01 | S48: 73685 | T48: 16582 | U48: 1001 | V48: 12441 | W48: 1865 | X48: 20266 | Y48: 2423.049586
R49: 2014-02-01 | S49: 66834 | T49: 17588 | U49: 1080 | V49: 12395 | W49: 1803 | X49: 18398 | Y49: 2461.424875
R50: 2014-03-01 | S50: 70411 | T50: 18066 | U50: 994 | V50: 16856 | W50: 2011 | X50: 19780 | Y50: 2506.508751
R51: 2014-04-01 | S51: 63822 | T51: 17524 | U51: 1047 | V51: 11508 | W51: 1959 | X51: 18920 | Y51: 2568.235616
R52: 2014-05-01 | S52: 66045 | T52: 17512 | U52: 1065 | V52: 12127 | W52: 2290 | X52: 18710 | Y52: 2566.473616
R53: 2014-06-01 | S53: 66521 | T53: 19235 | U53: 1171 | V53: 12515 | W53: 2408 | X53: 19345 | Y53: 2551.167894
R54: 2014-07-01 | S54: 73384 | T54: 19877 | U54: 1261 | V54: 13916 | W54: 3044 | X54: 21497 | Y54: 2578.16443
R55: 2014-08-01 | S55: 65303 | T55: 17956 | U55: 943 | V55: 11129 | W55: 2562 | X55: 17610 | Y55: 2583.028727
R56: 2014-09-01 | S56: 73636 | T56: 20030 | U56: 1121 | V56: 14188 | W56: 3069 | X56: 18363 | Y56: 2576.402023
R57: 2014-10-01 | S57: 79518 | T57: 21428 | U57: 1207 | V57: 15580 | W57: 3289 | X57: 19161 | Y57: 2589.861714
R58: 2014-11-01 | S58: 70993 | T58: 19049 | U58: 1000 | V58: 13162 | W58: 3222 | X58: 17385 | Y58: 2600.943091
R59: 2014-12-01 | S59: 63786 | T59: 19218 | U59: 1334 | V59: 12458 | W59: 3211 | X59: 16127 | Y59: 2602.176224
R60: 2015-01-01 | S60: 77212 | T60: 16556 | U60: 999 | V60: 12491 | W60: 3446 | X60: 17250 | Y60: 2606.966702
R61: 2015-02-01 | S61: 73611 | T61: 18889 | U61: 1009 | V61: 13694 | W61: 3618 | X61: 16828 | Y61: 2581.734944
R62: 2015-03-01 | S62: 80760 | T62: 20783 | U62: 1135 | V62: 15307 | W62: 4199 | X62: 19308 | Y62: 2606.281553
R63: 2015-04-01 | S63: 72131 | T63: 19807 | U63: 1039 | V63: 14602 | W63: 4147 | X63: 18062 | Y63: 2605.603912
R64: 2015-05-01 | S64: 68358 | T64: 16848 | U64: 882 | V64: 12705 | W64: 4038 | X64: 17453 | Y64: 2587.502464
R65: 2015-06-01 | S65: 70176 | T65: 18770 | U65: 1096 | V65: 14254 | W65: 5174 | X65: 19745 | Y65: 2576.67956
R66: 2015-07-01 | S66: 80276 | T66: 20368 | U66: 1034 | V66: 15874 | W66: 5289 | X66: 19705 | Y66: 2599.738663
R67: 2015-08-01 | S67: 67512 | T67: 17217 | U67: 922 | V67: 13968 | W67: 4628 | X67: 16670 | Y67: 2570.349691
R68: 2015-09-01 | S68: 72534 | T68: 18397 | U68: 1054 | V68: 14929 | W68: 4965 | X68: 17064 | Y68: 2578.391367
R69: 2015-10-01 | S69: 74685 | T69: 18162 | U69: 1457 | V69: 15147 | W69: 5291 | X69: 17302 | Y69: 2703.682213
R70: 2015-11-01 | S70: 72511 | T70: 18096 | U70: 1121 | V70: 15377 | W70: 4928 | X70: 17071 | Y70: 2577.986938
R71: 2015-12-01 | S71: 61982 | T71: 18031 | U71: 1071 | V71: 13981 | W71: 4874 | X71: 16206 | Y71: 2578.515736
R72: 2016-01-01 | S72: 69529 | T72: 15017 | U72: 869 | V72: 12810 | W72: 4982 | X72: 16061 | Y72: 2613.652933
R73: 2016-02-01 | S73: 71297 | T73: 17856 | U73: 1113 | V73: 15310 | W73: 5386 | X73: 16648 | Y73: 2598.833683
R74: 2016-03-01 | S74: 69664 | T74: 17356 | U74: 1182 | V74: 16802 | W74: 5630 | X74: 17930 | Y74: 2626.017118
R75: 2016-04-01 | S75: 70328 | T75: 17108 | U75: 1210 | V75: 13996 | W75: 5454 | X75: 17828 | Y75: 2657.785137
R76: 2016-05-01 | S76: 64625 | T76: 17045 | U76: 1135 | V76: 13568 | W76: 5453 | X76: 17185 | Y76: 2651.016157
R77: 2016-06-01 | S77: 68898 | T77: 17982 | U77: 1337 | V77: 14632 | W77: 6180 | X77: 18248 | Y77: 2678.561656
R78: 2016-07-01 | S78: 56478 | T78: 14762 | U78: 1053 | V78: 11929 | W78: 5173 | X78: 16102 | Y78: 2689.532078
R79: 2016-08-01 | S79: 67061 | T79: 12447 | U79: 718 | V79: 10517 | W79: 4463 | X79: 14663 | Y79: 2691.193559
R80: 2016-09-01 | S80: 66198 | T80: 16545 | U80: 1161 | V80: 14064 | W80: 6189 | X80: 16274 | Y80: 2718.300609
R81: 2016-10-01 | S81: 67121 | T81: 15788 | U81: 1075 | V81: 13713 | W81: 6026 | X81: 16012 | Y81: 2866.469693
R82: 2016-11-01 | S82: 69748 | T82: 17288 | U82: 1191 | V82: 15104 | W82: 6191 | X82: 16750 | Y82: 2736.741515
R83: 2016-12-01 | S83: 57123 | T83: 15636 | U83: 1001 | V83: 12727 | W83: 5278 | X83: 14043 | Y83: 2739.757932
R84: 2017-01-01 | S84: 65085 | T84: 14979 | U84: 950 | V84: 12307 | W84: 5943 | X84: 15501 | Y84: 2756.305693
R85: 2017-02-01 | S85: 61420 | T85: 15146 | U85: 1276 | V85: 13038 | W85: 5725 | X85: 14681 | Y85: 2775.29768
R86: 2017-03-01 | S86: 67677 | T86: 16901 | U86: 1237 | V86: 17751 | W86: 6677 | X86: 17634 | Y86: 2781.651075
R87: 2017-04-01 | S87: 51890 | T87: 12534 | U87: 986 | V87: 12380 | W87: 5908 | X87: 13451 | Y87: 2804.941433
R88: 2017-05-01 | S88: 59933 | T88: 14513 | U88: 1036 | V88: 13501 | W88: 6371 | X88: 15949 | Y88: 2802.762874
A89: Note:The figure for claims exiting the Portal in January is 54% lower than for December 2020. The reason for this is that during December a claimant law firm were running the exit process on approximately 12,000 claims on their case management system which, in error, had not been exited from the Portal when settled. | R89: 2017-06-01 | S89: 60258 | T89: 14273 | U89: 1127 | V89: 14280 | W89: 6540 | X89: 16020 | Y89: 2780.168986
R90: 2017-07-01 | S90: 58486 | T90: 13459 | U90: 980 | V90: 13315 | W90: 6208 | X90: 14883 | Y90: 2816.968797
R91: 2017-08-01 | S91: 58922 | T91: 14398 | U91: 963 | V91: 14004 | W91: 6428 | X91: 14877 | Y91: 2802.716165
R92: 2017-09-01 | S92: 56910 | T92: 12920 | U92: 933 | V92: 12504 | W92: 6197 | X92: 14023 | Y92: 2789.773445
R93: 2017-10-01 | S93: 61785 | T93: 13796 | U93: 956 | V93: 14047 | W93: 6130 | X93: 14784 | Y93: 2795.822996
R94: 2017-11-01 | S94: 61460 | T94: 13122 | U94: 932 | V94: 13879 | W94: 6447 | X94: 14701 | Y94: 2794.400593
R95: 2017-12-01 | S95: 48898 | T95: 11623 | U95: 1026 | V95: 11329 | W95: 5170 | X95: 11229 | Y95: 2817.595655
R96: 2018-01-01 | S96: 64293 | T96: 12863 | U96: 991 | V96: 13327 | W96: 6362 | X96: 14246 | Y96: 2816.761038
R97: 2018-02-01 | S97: 57340 | T97: 12337 | U97: 958 | V97: 12799 | W97: 5933 | X97: 13236 | Y97: 2809.703436
R98: 2018-03-01 | S98: 58497 | T98: 12683 | U98: 1111 | V98: 13136 | W98: 6066 | X98: 14200 | Y98: 2823.95084
R99: 2018-04-01 | S99: 54654 | T99: 11912 | U99: 1153 | V99: 12751 | W99: 5971 | X99: 13564 | Y99: 2826.73491
R100: 2018-05-01 | S100: 59388 | T100: 12448 | U100: 1112 | V100: 12987 | W100: 6217 | X100: 14703 | Y100: 3081.427844
R101: 2018-06-01 | S101: 54618 | T101: 13928 | U101: 1249 | V101: 12895 | W101: 5926 | X101: 13687 | Y101: 2842.867002
R102: 2018-07-01 | S102: 60276 | T102: 12678 | U102: 1141 | V102: 13714 | W102: 6829 | X102: 14065 | Y102: 2844.582817
R103: 2018-08-01 | S103: 58321 | T103: 12535 | U103: 1070 | V103: 14239 | W103: 5999 | X103: 13486 | Y103: 2854.045599
R104: 2018-09-01 | S104: 54918 | T104: 10917 | U104: 884 | V104: 12123 | W104: 5765 | X104: 12989 | Y104: 2834.581672
R105: 2018-10-01 | S105: 65721 | T105: 12981 | U105: 1088 | V105: 15184 | W105: 6383 | X105: 14896 | Y105: 2866.759307
R106: 2018-11-01 | S106: 62328 | T106: 12214 | U106: 1072 | V106: 14361 | W106: 6309 | X106: 15047 | Y106: 2864.333488
R107: 2018-12-01 | S107: 47165 | T107: 10736 | U107: 1025 | V107: 12146 | W107: 4868 | X107: 11451 | Y107: 2874.137061
R108: 2019-01-01 | S108: 62424 | T108: 10965 | U108: 887 | V108: 14451 | W108: 6201 | X108: 14832 | Y108: 2851.332528
R109: 2019-02-01 | S109: 56832 | T109: 10923 | U109: 1068 | V109: 13607 | W109: 5324 | X109: 12913 | Y109: 2832.512205
R110: 2019-03-01 | S110: 58032 | T110: 11620 | U110: 1040 | V110: 13401 | W110: 6083 | X110: 14403 | Y110: 2826.171033
R111: 2019-04-01 | S111: 54723 | T111: 10602 | U111: 933 | V111: 13313 | W111: 5648 | X111: 14194 | Y111: 2811.171194
R112: 2019-05-01 | S112: 57900 | T112: 11198 | U112: 972 | V112: 13947 | W112: 5936 | X112: 14568 | Y112: 2816.665623
R113: 2019-06-01 | S113: 53653 | T113: 10733 | U113: 986 | V113: 13127 | W113: 5605 | X113: 13731 | Y113: 2830.216218
R114: 2019-07-01 | S114: 61054 | T114: 12359 | U114: 1151 | V114: 15534 | W114: 6697 | X114: 15284 | Y114: 2818.024845
R115: 2019-08-01 | S115: 54874 | T115: 11525 | U115: 1107 | V115: 14288 | W115: 5663 | X115: 13283 | Y115: 2824.772762
R116: 2019-09-01 | S116: 56733 | T116: 11272 | U116: 1112 | V116: 13840 | W116: 5703 | X116: 13407 | Y116: 2845.407688
R117: 2019-10-01 | S117: 62524 | T117: 11917 | U117: 1301 | V117: 15721 | W117: 5699 | X117: 14561 | Y117: 2820.701197
R118: 2019-11-01 | S118: 59559 | T118: 10749 | U118: 1051 | V118: 14884 | W118: 5362 | X118: 13522 | Y118: 2831.389
R119: 2019-12-01 | S119: 50791 | T119: 10850 | U119: 1145 | V119: 13349 | W119: 4741 | X119: 11731 | Y119: 2818.560024
R120: 2020-01-01 | S120: 60062 | T120: 10912 | U120: 998 | V120: 13480 | W120: 5166 | X120: 14051 | Y120: 2810.599304
R121: 2020-02-01 | S121: 55548 | T121: 10457 | U121: 1125 | V121: 14044 | W121: 4681 | X121: 12910 | Y121: 2818.530686
R122: 2020-03-01 | S122: 49387 | T122: 10953 | U122: 1124 | V122: 14964 | W122: 5469 | X122: 14999 | Y122: 2824.37249
R123: 2020-04-01 | S123: 24628 | T123: 7799 | U123: 1044 | V123: 8652 | W123: 4689 | X123: 13301 | Y123: 2851.398494
R124: 2020-05-01 | S124: 23081 | T124: 4854 | U124: 799 | V124: 6744 | W124: 4641 | X124: 10814 | Y124: 2903.051542
R125: 2020-06-01 | S125: 31196 | T125: 5736 | U125: 789 | V125: 8447 | W125: 5114 | X125: 10486 | Y125: 2896.16723
R126: 2020-07-01 | S126: 39333 | T126: 6891 | U126: 796 | V126: 10467 | W126: 4887 | X126: 10387 | Y126: 2911.730959
R127: 2020-08-01 | S127: 33922 | T127: 6560 | U127: 534 | V127: 8512 | W127: 3679 | X127: 7651 | Y127: 2860.658147
R128: 2020-09-01 | S128: 43018 | T128: 7707 | U128: 690 | V128: 10521 | W128: 4383 | X128: 8584 | Y128: 2915.720782
R129: 2020-10-01 | S129: 45723 | T129: 8593 | U129: 744 | V129: 12512 | W129: 3926 | X129: 9043 | Y129: 2901.881685
R130: 2020-11-01 | S130: 40610 | T130: 8015 | U130: 621 | V130: 11071 | W130: 3744 | X130: 8775 | Y130: 2897.147205
R131: 2020-12-01 | S131: 35480 | T131: 7200 | U131: 632 | V131: 23441 | W131: 3331 | X131: 7963 | Y131: 2916.711731
R132: 2021-01-01 | S132: 37948 | T132: 5980 | U132: 514 | V132: 10974 | W132: 3658 | X132: 8620 | Y132: 2897.29747
R133: 2021-02-01 | S133: 33533 | T133: 5957 | U133: 586 | V133: 12365 | W133: 3722 | X133: 8526 | Y133: 2887.359456
R134: 2021-03-01 | S134: 31614 | T134: 6574 | U134: 661 | V134: 11707 | W134: 4738 | X134: 10158 | Y134: 2925.876584
R135: 2021-04-01 | S135: 36996 | T135: 5830 | U135: 654 | V135: 10343 | W135: 4094 | X135: 7919 | Y135: 2923.172899
R136: 2021-05-01 | S136: 38009 | T136: 5755 | U136: 617 | V136: 10188 | W136: 3820 | X136: 7652 | Y136: 2952.912054
R137: 2021-06-01 | S137: 22650 | T137: 6955 | U137: 647 | V137: 9834 | W137: 4198 | X137: 8170 | Y137: 2979.756495
R138: 2021-07-01 | S138: 14981 | T138: 3835 | U138: 742 | V138: 6072 | W138: 3876 | X138: 7172 | Y138: 3031.368859
R139: 2021-08-01 | S139: 11388 | T139: 2445 | U139: 695 | V139: 4664 | W139: 3588 | X139: 6571 | Y139: 3044.84208
R140: 2021-09-01 | S140: 10692 | T140: 2376 | U140: 568 | V140: 4177 | W140: 3474 | X140: 6090 | Y140: 3144.47906
R141: 2021-10-01 | S141: 10160 | T141: 2214 | U141: 467 | V141: 3966 | W141: 3261 | X141: 4965 | Y141: 3195.454408
R142: 2021-11-01 | S142: 9900 | T142: 2021 | U142: 447 | V142: 3901 | W142: 3046 | X142: 4635 | Y142: 3427.810936
R143: 2021-12-01 | S143: 7548 | T143: 1809 | U143: 405 | V143: 2980 | W143: 2162 | X143: 3267 | Y143: 3573.468647
R144: 2022-01-01 | S144: 8827 | T144: 1409 | U144: 232 | V144: 2666 | W144: 1969 | X144: 2931 | Y144: 3682.643773
R145: 2022-02-01 | S145: 7747 | T145: 1714 | U145: 344 | V145: 2829 | W145: 1575 | X145: 2541 | Y145: 3852.337044
R146: 2022-03-01 | S146: 8287 | T146: 1646 | U146: 376 | V146: 3008 | W146: 1649 | X146: 2556 | Y146: 3982.043407
R147: 2022-04-01 | S147: 7332 | T147: 1380 | U147: 324 | V147: 2338 | W147: 1228 | X147: 1900 | Y147: 4077.485247
R148: 2022-05-01 | S148: 7916 | T148: 1614 | U148: 312 | V148: 2646 | W148: 1209 | X148: 1879 | Y148: 4166.929659
R149: 2022-06-01 | S149: 7309 | T149: 1495 | U149: 303 | V149: 2271 | W149: 1052 | X149: 1740 | Y149: 4309.212448
R150: 2022-07-01 | S150: 7438 | T150: 1642 | U150: 328 | V150: 2300 | W150: 1083 | X150: 1461 | Y150: 4624.211437
R151: 2022-08-01 | S151: 8099 | T151: 1748 | U151: 355 | V151: 2435 | W151: 1250 | X151: 1483 | Y151: 4307.001773
R152: 2022-09-01 | S152: 7636 | T152: 1760 | U152: 409 | V152: 2317 | W152: 1035 | X152: 1316 | Y152: 4533.912226
R153: 2022-10-01 | S153: 7613 | T153: 1769 | U153: 331 | V153: 2260 | W153: 1122 | X153: 1298 | Y153: 5408.307473
R154: 2022-11-01 | S154: 8323 | T154: 1937 | U154: 320 | V154: 2529 | W154: 1187 | X154: 1279 | Y154: 5596.780359
R155: 2022-12-01 | S155: 6141 | T155: 1724 | U155: 331 | V155: 2059 | W155: 822 | X155: 992 | Y155: 5366.793548
R156: 2023-01-01 | S156: 7407 | T156: 1491 | U156: 312 | V156: 2122 | W156: 1011 | X156: 1041 | Y156: 5712.109039
R157: 2023-02-01 | S157: 7481 | T157: 1754 | U157: 396 | V157: 2106 | W157: 857 | X157: 952 | Y157: 5577.042531
R158: 2023-03-01 | S158: 7473 | T158: 1912 | U158: 397 | V158: 2297 | W158: 1006 | X158: 890 | Y158: 5130.413887
R159: 2023-04-01 | S159: 6114 | T159: 1213 | U159: 208 | V159: 1828 | W159: 695 | X159: 478 | Y159: 5428.894456
R160: 2023-05-01 | S160: 6856 | T160: 1704 | U160: 321 | V160: 1895 | W160: 858 | X160: 563 | Y160: 5166.994085
R161: 2023-06-01 | S161: 7700 | T161: 1967 | U161: 346 | V161: 2065 | W161: 819 | X161: 618 | Y161: 5368.211035
R162: 2023-07-01 | S162: 7309 | T162: 1852 | U162: 287 | V162: 2460 | W162: 839 | X162: 602 | Y162: 5404.624119
R163: 2023-08-01 | S163: 7473 | T163: 2005 | U163: 362 | V163: 2167 | W163: 774 | X163: 591 | Y163: 5731.540287
R164: 2023-09-01 | S164: 6995 | T164: 1775 | U164: 341 | V164: 1866 | W164: 774 | X164: 474 | Y164: 5040.881139
R165: 2023-10-01 | S165: 7827 | T165: 1958 | U165: 341 | V165: 2240 | W165: 811 | X165: 541 | Y165: 5448.174916
R166: 2023-11-01 | S166: 7723 | T166: 1978 | U166: 350 | V166: 2114 | W166: 741 | X166: 568 | Y166: 5398.174066
R167: 2023-12-01 | S167: 5702 | T167: 1537 | U167: 332 | V167: 1752 | W167: 670 | X167: 438 | Y167: 5740.8571
R168: 2024-01-01 | S168: 7524 | T168: 1347 | U168: 246 | V168: 1684 | W168: 597 | X168: 381 | Y168: 5451.142519
R169: 2024-02-01 | S169: 7257 | T169: 1652 | U169: 276 | V169: 2828 | W169: 612 | X169: 669 | Y169: 6031.172526
R170: 2024-03-01 | S170: 6810 | T170: 1581 | U170: 294 | V170: 2675 | W170: 522 | X170: 584 | Y170: 5721.065068
R171: 2024-04-01 | S171: 7630 | T171: 1685 | U171: 275 | V171: 2099 | W171: 604 | X171: 603 | Y171: 6221.389137
R172: 2024-05-01 | S172: 7112 | T172: 1802 | U172: 327 | V172: 2206 | W172: 656 | X172: 582 | Y172: 6404.659931
R173: 2024-06-01 | S173: 6943 | T173: 1768 | U173: 277 | V173: 1874 | W173: 600 | X173: 614 | Y173: 6639.581693
R174: 2024-07-01 | S174: 8152 | T174: 2206 | U174: 379 | V174: 2201 | W174: 716 | X174: 635 | Y174: 6282.994598
R175: 2024-08-01 | S175: 7124 | T175: 1917 | U175: 346 | V175: 2075 | W175: 617 | X175: 607 | Y175: 6735.441894
R176: 2024-09-01 | S176: 7355 | T176: 1743 | U176: 315 | V176: 1988 | W176: 652 | X176: 613 | Y176: 6457.265481
R177: 2024-10-01 | S177: 8231 | T177: 2049 | U177: 365 | V177: 2421 | W177: 749 | X177: 735 | Y177: 6612.130544
R178: 2024-11-01 | S178: 6967 | T178: 1630 | U178: 318 | V178: 2117 | W178: 737 | X178: 704 | Y178: 6341.927045
R179: 2024-12-01 | S179: 6022 | T179: 1482 | U179: 295 | V179: 1791 | W179: 662 | X179: 633 | Y179: 6558.447788
R180: 2025-01-01 | S180: 7071 | T180: 1472 | U180: 263 | V180: 1803 | W180: 671 | X180: 709 | Y180: 6108.55598
R181: 2025-02-01 | S181: 6762 | T181: 1428 | U181: 327 | V181: 1874 | W181: 674 | X181: 637 | Y181: 6277.286483
R182: 2025-03-01 | S182: 6794 | T182: 1314 | U182: 291 | V182: 1935 | W182: 680 | X182: 752 | Y182: 6127.348178
R183: 2025-04-01 | S183: 6651 | T183: 1285 | U183: 247 | V183: 2168 | W183: 623 | X183: 690 | Y183: 5767.838898
R184: 2025-05-01 | S184: 6989 | T184: 1313 | U184: 213 | V184: 1947 | W184: 656 | X184: 662 | Y184: 6028.321238
R185: 2025-06-01 | S185: 7177 | T185: 1520 | U185: 242 | V185: 2124 | W185: 739 | X185: 757 | Y185: 6682.647873
R186: 2025-07-01 | S186: 7332 | T186: 1639 | U186: 294 | V186: 2266 | W186: 854 | X186: 735 | Y186: 6762.515972
R187: 2025-08-01 | S187: 6360 | T187: 1419 | U187: 224 | V187: 1888 | W187: 618 | X187: 686 | Y187: 6377.979416
R188: 2025-09-01 | S188: 7253 | T188: 1686 | U188: 232 | V188: 2127 | W188: 672 | X188: 774 | Y188: 5885.983423

Sheet vRTADashboard (hidden)
B1: =SUBTOTAL(9,vRTADashboard[CNFs Sent]) -> 1130528 | C1: =SUBTOTAL(9,vRTADashboard[CNFs left at Stage 1]) -> 137492 | D1: =SUBTOTAL(9,vRTADashboard[Stage 2 Exit]) -> 22115 | E1: =SUBTOTAL(9,vRTADashboard[Exit process]) -> 196283 | F1: =SUBTOTAL(9,vRTADashboard[Court Pack]) -> 84065 | G1: =SUBTOTAL(9,vRTADashboard[Settled claims]) -> 76738 | H1: =SUBTOTAL(9,vRTADashboard[General Damages]) -> 508713.2032
A2: Period | B2: CNFs Sent | C2: CNFs left at Stage 1 | D2: Stage 2 Exit | E2: Exit process | F2: Court Pack | G2: Settled claims | H2: General Damages | I2: General Damage Bands | K2: Period | L2: Rolling 13 CNF Sent | M2: Rolling 13 CNF Left at Stage 1 | N2: Rolling 13 Stage 2 Exit | O2: Rolling 13 Exit Process | P2: Rolling 13 Court Pack | Q2: Rolling 13 Settled Claims
A3: 2010-09-01 | B3: 262 | C3: 1 | D3: 0 | E3: 0 | F3: 0 | G3: 0 | K3: =vRTADashboard[[#This Row],[Period]] -> 2010-09-01
A4: 2011-01-01 | B4: 265 | C4: 0 | D4: 0 | E4: 0 | F4: 0 | G4: 0 | I4: £0-£5k | K4: =vRTADashboard[[#This Row],[Period]] -> 2011-01-01
A5: 2011-02-01 | B5: 255 | C5: 1 | D5: 0 | E5: 0 | F5: 0 | G5: 0 | I5: £0-£5k | K5: =vRTADashboard[[#This Row],[Period]] -> 2011-02-01
A6: 2011-03-01 | B6: 294 | C6: 0 | D6: 0 | E6: 0 | F6: 0 | G6: 0 | I6: £0-£5k | K6: =vRTADashboard[[#This Row],[Period]] -> 2011-03-01
A7: 2011-04-01 | B7: 284 | C7: 0 | D7: 0 | E7: 1 | F7: 0 | G7: 0 | I7: £0-£5k | K7: =vRTADashboard[[#This Row],[Period]] -> 2011-04-01
A8: 2011-05-01 | B8: 392 | C8: 0 | D8: 0 | E8: 0 | F8: 0 | G8: 0 | I8: £0-£5k | K8: =vRTADashboard[[#This Row],[Period]] -> 2011-05-01
A9: 2011-06-01 | B9: 469 | C9: 0 | D9: 0 | E9: 0 | F9: 0 | G9: 0 | I9: £0-£5k | K9: =vRTADashboard[[#This Row],[Period]] -> 2011-06-01
A10: 2011-07-01 | B10: 442 | C10: 1 | D10: 0 | E10: 0 | F10: 0 | G10: 0 | K10: =vRTADashboard[[#This Row],[Period]] -> 2011-07-01
A11: 2011-08-01 | B11: 487 | C11: 0 | D11: 0 | E11: 0 | F11: 0 | G11: 0 | I11: £0-£5k | K11: =vRTADashboard[[#This Row],[Period]] -> 2011-08-01
A12: 2011-09-01 | B12: 480 | C12: 1 | D12: 0 | E12: 0 | F12: 0 | G12: 0 | K12: =vRTADashboard[[#This Row],[Period]] -> 2011-09-01
A13: 2011-10-01 | B13: 500 | C13: 0 | D13: 0 | E13: 0 | F13: 0 | G13: 0 | K13: =vRTADashboard[[#This Row],[Period]] -> 2011-10-01
A14: 2011-11-01 | B14: 527 | C14: 0 | D14: 0 | E14: 0 | F14: 0 | G14: 0 | I14: £0-£5k | K14: =vRTADashboard[[#This Row],[Period]] -> 2011-11-01 | L14: =SUM(B2:B14) -> 4657 | M14: 4 | N14: 0 | O14: 1 | P14: 0 | Q14: 0
A15: 2011-12-01 | B15: 407 | C15: 1 | D15: 0 | E15: 0 | F15: 0 | G15: 0 | I15: £0-£5k | K15: =vRTADashboard[[#This Row],[Period]] -> 2011-12-01 | L15: =SUM(B3:B15) -> 5064 | M15: 5 | N15: 0 | O15: 1 | P15: 0 | Q15: 0
A16: 2012-01-01 | B16: 513 | C16: 0 | D16: 0 | E16: 0 | F16: 0 | G16: 0 | I16: £0-£5k | K16: =vRTADashboard[[#This Row],[Period]] -> 2012-01-01 | L16: =SUM(B4:B16) -> 5315 | M16: 4 | N16: 0 | O16: 1 | P16: 0 | Q16: 0
A17: 2012-02-01 | B17: 539 | C17: 0 | D17: 0 | E17: 0 | F17: 0 | G17: 0 | I17: £0-£5k | K17: =vRTADashboard[[#This Row],[Period]] -> 2012-02-01 | L17: =SUM(B5:B17) -> 5589 | M17: 4 | N17: 0 | O17: 1 | P17: 0 | Q17: 0
A18: 2012-03-01 | B18: 483 | C18: 1 | D18: 0 | E18: 0 | F18: 0 | G18: 0 | I18: £0-£5k | K18: =vRTADashboard[[#This Row],[Period]] -> 2012-03-01 | L18: =SUM(B6:B18) -> 5817 | M18: 4 | N18: 0 | O18: 1 | P18: 0 | Q18: 0
A19: 2012-04-01 | B19: 493 | C19: 1 | D19: 0 | E19: 0 | F19: 0 | G19: 0 | K19: =vRTADashboard[[#This Row],[Period]] -> 2012-04-01 | L19: =SUM(B7:B19) -> 6016 | M19: 5 | N19: 0 | O19: 1 | P19: 0 | Q19: 0
A20: 2012-05-01 | B20: 569 | C20: 0 | D20: 0 | E20: 0 | F20: 0 | G20: 0 | I20: £0-£5k | K20: =vRTADashboard[[#This Row],[Period]] -> 2012-05-01 | L20: =SUM(B8:B20) -> 6301 | M20: 5 | N20: 0 | O20: 0 | P20: 0 | Q20: 0
A21: 2012-06-01 | B21: 537 | C21: 1 | D21: 0 | E21: 0 | F21: 0 | G21: 0 | I21: £0-£5k | K21: =vRTADashboard[[#This Row],[Period]] -> 2012-06-01 | L21: =SUM(B9:B21) -> 6446 | M21: 6 | N21: 0 | O21: 0 | P21: 0 | Q21: 0
A22: 2012-07-01 | B22: 592 | C22: 0 | D22: 0 | E22: 0 | F22: 0 | G22: 0 | K22: =vRTADashboard[[#This Row],[Period]] -> 2012-07-01 | L22: =SUM(B10:B22) -> 6569 | M22: 6 | N22: 0 | O22: 0 | P22: 0 | Q22: 0
A23: 2012-08-01 | B23: 589 | C23: 0 | D23: 0 | E23: 0 | F23: 0 | G23: 0 | K23: =vRTADashboard[[#This Row],[Period]] -> 2012-08-01 | L23: =SUM(B11:B23) -> 6716 | M23: 5 | N23: 0 | O23: 0 | P23: 0 | Q23: 0
A24: 2012-09-01 | B24: 799 | C24: 0 | D24: 0 | E24: 0 | F24: 0 | G24: 0 | I24: £0-£5k | K24: =vRTADashboard[[#This Row],[Period]] -> 2012-09-01 | L24: =SUM(B12:B24) -> 7028 | M24: 5 | N24: 0 | O24: 0 | P24: 0 | Q24: 0
A25: 2012-10-01 | B25: 1468 | C25: 0 | D25: 0 | E25: 0 | F25: 0 | G25: 0 | K25: =vRTADashboard[[#This Row],[Period]] -> 2012-10-01 | L25: =SUM(B13:B25) -> 8016 | M25: 4 | N25: 0 | O25: 0 | P25: 0 | Q25: 0
A26: 2012-11-01 | B26: 1444 | C26: 0 | D26: 0 | E26: 0 | F26: 0 | G26: 1 | H26: 1000 | I26: £0-£5k | K26: =vRTADashboard[[#This Row],[Period]] -> 2012-11-01 | L26: =SUM(B14:B26) -> 8960 | M26: 4 | N26: 0 | O26: 0 | P26: 0 | Q26: 1
A27: 2012-12-01 | B27: 1040 | C27: 0 | D27: 0 | E27: 0 | F27: 0 | G27: 0 | I27: £0-£5k | K27: =vRTADashboard[[#This Row],[Period]] -> 2012-12-01 | L27: =SUM(B15:B27) -> 9473 | M27: 4 | N27: 0 | O27: 0 | P27: 0 | Q27: 1
A28: 2013-01-01 | B28: 1524 | C28: 0 | D28: 0 | E28: 0 | F28: 0 | G28: 1 | H28: 1650 | I28: £0-£5k | K28: =vRTADashboard[[#This Row],[Period]] -> 2013-01-01 | L28: =SUM(B16:B28) -> 10590 | M28: 3 | N28: 0 | O28: 0 | P28: 0 | Q28: 2
A29: 2013-02-01 | B29: 1463 | C29: 0 | D29: 0 | E29: 0 | F29: 0 | G29: 0 | K29: =vRTADashboard[[#This Row],[Period]] -> 2013-02-01 | L29: =SUM(B17:B29) -> 11540 | M29: 3 | N29: 0 | O29: 0 | P29: 0 | Q29: 2
A30: 2013-03-01 | B30: 1934 | C30: 0 | D30: 0 | E30: 0 | F30: 0 | G30: 0 | I30: £0-£5k | K30: =vRTADashboard[[#This Row],[Period]] -> 2013-03-01 | L30: =SUM(B18:B30) -> 12935 | M30: 3 | N30: 0 | O30: 0 | P30: 0 | Q30: 2
A31: 2013-04-01 | B31: 1892 | C31: 0 | D31: 0 | E31: 0 | F31: 0 | G31: 1 | H31: 1600 | I31: £0-£5k | K31: =vRTADashboard[[#This Row],[Period]] -> 2013-04-01 | L31: =SUM(B19:B31) -> 14344 | M31: 2 | N31: 0 | O31: 0 | P31: 0 | Q31: 3
A32: 2013-05-01 | B32: 1277 | C32: 0 | D32: 0 | E32: 0 | F32: 0 | G32: 2 | H32: 1525 | I32: £0-£5k | K32: =vRTADashboard[[#This Row],[Period]] -> 2013-05-01 | L32: =SUM(B20:B32) -> 15128 | M32: 1 | N32: 0 | O32: 0 | P32: 0 | Q32: 5
A33: 2013-06-01 | B33: 1426 | C33: 0 | D33: 0 | E33: 0 | F33: 0 | G33: 5 | H33: 1538 | I33: £0-£5k | K33: =vRTADashboard[[#This Row],[Period]] -> 2013-06-01 | L33: =SUM(B21:B33) -> 15985 | M33: 1 | N33: 0 | O33: 0 | P33: 0 | Q33: 10
A34: 2013-07-01 | B34: 1836 | C34: 0 | D34: 0 | E34: 0 | F34: 0 | G34: 5 | H34: 1467 | I34: £0-£5k | K34: =vRTADashboard[[#This Row],[Period]] -> 2013-07-01 | L34: =SUM(B22:B34) -> 17284 | M34: 0 | N34: 0 | O34: 0 | P34: 0 | Q34: 15
A35: 2013-08-01 | B35: 1470 | C35: 0 | D35: 0 | E35: 0 | F35: 0 | G35: 3 | H35: 1883.333333 | I35: £0-£5k | K35: =vRTADashboard[[#This Row],[Period]] -> 2013-08-01 | L35: =SUM(B23:B35) -> 18162 | M35: 0 | N35: 0 | O35: 0 | P35: 0 | Q35: 18
A36: 2013-09-01 | B36: 1580 | C36: 0 | D36: 0 | E36: 0 | F36: 0 | G36: 5 | H36: 1390 | I36: £0-£5k | K36: =vRTADashboard[[#This Row],[Period]] -> 2013-09-01 | L36: =SUM(B24:B36) -> 19153 | M36: 0 | N36: 0 | O36: 0 | P36: 0 | Q36: 23
A37: 2013-10-01 | B37: 1643 | C37: 0 | D37: 0 | E37: 0 | F37: 0 | G37: 3 | H37: 1550 | I37: £0-£5k | K37: =vRTADashboard[[#This Row],[Period]] -> 2013-10-01 | L37: =SUM(B25:B37) -> 19997 | M37: 0 | N37: 0 | O37: 0 | P37: 0 | Q37: 26
A38: 2013-11-01 | B38: 1620 | C38: 0 | D38: 0 | E38: 0 | F38: 0 | G38: 5 | H38: 1163.232 | I38: £0-£5k | K38: =vRTADashboard[[#This Row],[Period]] -> 2013-11-01 | L38: =SUM(B26:B38) -> 20149 | M38: 0 | N38: 0 | O38: 0 | P38: 0 | Q38: 31
A39: 2013-12-01 | B39: 1178 | C39: 0 | D39: 0 | E39: 0 | F39: 0 | G39: 2 | H39: 2555 | I39: £0-£5k | K39: =vRTADashboard[[#This Row],[Period]] -> 2013-12-01 | L39: =SUM(B27:B39) -> 19883 | M39: 0 | N39: 0 | O39: 0 | P39: 0 | Q39: 32
A40: 2014-01-01 | B40: 1864 | C40: 0 | D40: 0 | E40: 0 | F40: 0 | G40: 3 | H40: 1560 | I40: £0-£5k | K40: =vRTADashboard[[#This Row],[Period]] -> 2014-01-01 | L40: =SUM(B28:B40) -> 20707 | M40: 0 | N40: 0 | O40: 0 | P40: 0 | Q40: 35
A41: 2014-02-01 | B41: 1618 | C41: 0 | D41: 0 | E41: 0 | F41: 0 | G41: 4 | H41: 1887.5 | I41: £0-£5k | K41: =vRTADashboard[[#This Row],[Period]] -> 2014-02-01 | L41: =SUM(B29:B41) -> 20801 | M41: 0 | N41: 0 | O41: 0 | P41: 0 | Q41: 38
A42: 2014-03-01 | B42: 1828 | C42: 0 | D42: 0 | E42: 0 | F42: 0 | G42: 2 | H42: 1562.5 | I42: £0-£5k | K42: =vRTADashboard[[#This Row],[Period]] -> 2014-03-01 | L42: =SUM(B30:B42) -> 21166 | M42: 0 | N42: 0 | O42: 0 | P42: 0 | Q42: 40
A43: 2014-04-01 | B43: 1605 | C43: 0 | D43: 0 | E43: 0 | F43: 0 | G43: 6 | H43: 1835.833333 | I43: £0-£5k | K43: =vRTADashboard[[#This Row],[Period]] -> 2014-04-01 | L43: =SUM(B31:B43) -> 20837 | M43: 0 | N43: 0 | O43: 0 | P43: 0 | Q43: 46
A44: 2014-05-01 | B44: 1709 | C44: 0 | D44: 0 | E44: 0 | F44: 0 | G44: 7 | H44: 1442.685714 | I44: £0-£5k | K44: =vRTADashboard[[#This Row],[Period]] -> 2014-05-01 | L44: =SUM(B32:B44) -> 20654 | M44: 0 | N44: 0 | O44: 0 | P44: 0 | Q44: 52
A45: 2014-06-01 | B45: 1758 | C45: 0 | D45: 0 | E45: 0 | F45: 0 | G45: 4 | H45: 1822.7375 | I45: £0-£5k | K45: =vRTADashboard[[#This Row],[Period]] -> 2014-06-01 | L45: =SUM(B33:B45) -> 21135 | M45: 0 | N45: 0 | O45: 0 | P45: 0 | Q45: 54
A46: 2014-07-01 | B46: 1967 | C46: 0 | D46: 0 | E46: 0 | F46: 0 | G46: 3 | H46: 1710 | I46: £0-£5k | K46: =vRTADashboard[[#This Row],[Period]] -> 2014-07-01 | L46: =SUM(B34:B46) -> 21676 | M46: 0 | N46: 0 | O46: 0 | P46: 0 | Q46: 52
A47: 2014-08-01 | B47: 1913 | C47: 0 | D47: 0 | E47: 0 | F47: 0 | G47: 5 | H47: 2005.896 | I47: £0-£5k | K47: =vRTADashboard[[#This Row],[Period]] -> 2014-08-01 | L47: =SUM(B35:B47) -> 21753 | M47: 0 | N47: 0 | O47: 0 | P47: 0 | Q47: 52
A48: 2014-09-01 | B48: 2124 | C48: 0 | D48: 0 | E48: 0 | F48: 0 | G48: 5 | H48: 2276 | I48: £0-£5k | K48: =vRTADashboard[[#This Row],[Period]] -> 2014-09-01 | L48: =SUM(B36:B48) -> 22407 | M48: 0 | N48: 0 | O48: 0 | P48: 0 | Q48: 54
A49: 2014-10-01 | B49: 2440 | C49: 0 | D49: 0 | E49: 0 | F49: 0 | G49: 10 | H49: 1710.5 | I49: £0-£5k | K49: =vRTADashboard[[#This Row],[Period]] -> 2014-10-01 | L49: =SUM(B37:B49) -> 23267 | M49: 0 | N49: 0 | O49: 0 | P49: 0 | Q49: 59
A50: 2014-11-01 | B50: 2056 | C50: 0 | D50: 0 | E50: 0 | F50: 0 | G50: 6 | H50: 2644.811666 | I50: £0-£5k | K50: =vRTADashboard[[#This Row],[Period]] -> 2014-11-01 | L50: =SUM(B38:B50) -> 23680 | M50: 0 | N50: 0 | O50: 0 | P50: 0 | Q50: 62
A51: 2014-12-01 | B51: 1621 | C51: 0 | D51: 0 | E51: 0 | F51: 0 | G51: 6 | H51: 1947.5 | I51: £0-£5k | K51: =vRTADashboard[[#This Row],[Period]] -> 2014-12-01 | L51: =SUM(B39:B51) -> 23681 | M51: 0 | N51: 0 | O51: 0 | P51: 0 | Q51: 63
A52: 2015-01-01 | B52: 2023 | C52: 0 | D52: 0 | E52: 0 | F52: 0 | G52: 13 | H52: 2015.386153 | I52: £0-£5k | K52: =vRTADashboard[[#This Row],[Period]] -> 2015-01-01 | L52: =SUM(B40:B52) -> 24526 | M52: 0 | N52: 0 | O52: 0 | P52: 0 | Q52: 74
A53: 2015-02-01 | B53: 2017 | C53: 0 | D53: 0 | E53: 0 | F53: 0 | G53: 10 | H53: 2026 | I53: £0-£5k | K53: =vRTADashboard[[#This Row],[Period]] -> 2015-02-01 | L53: =SUM(B41:B53) -> 24679 | M53: 0 | N53: 0 | O53: 0 | P53: 0 | Q53: 81
A54: 2015-03-01 | B54: 2198 | C54: 0 | D54: 0 | E54: 0 | F54: 0 | G54: 14 | H54: 1796.428571 | I54: £0-£5k | K54: =vRTADashboard[[#This Row],[Period]] -> 2015-03-01 | L54: =SUM(B42:B54) -> 25259 | M54: 0 | N54: 0 | O54: 0 | P54: 0 | Q54: 91
A55: 2015-04-01 | B55: 2139 | C55: 0 | D55: 0 | E55: 0 | F55: 0 | G55: 16 | H55: 1487.496875 | I55: £0-£5k | K55: =vRTADashboard[[#This Row],[Period]] -> 2015-04-01 | L55: =SUM(B43:B55) -> 25570 | M55: 0 | N55: 0 | O55: 0 | P55: 0 | Q55: 105
A56: 2015-05-01 | B56: 2017 | C56: 0 | D56: 0 | E56: 0 | F56: 0 | G56: 9 | H56: 1701.666666 | I56: £0-£5k | K56: =vRTADashboard[[#This Row],[Period]] -> 2015-05-01 | L56: =SUM(B44:B56) -> 25982 | M56: 0 | N56: 0 | O56: 0 | P56: 0 | Q56: 108
A57: 2015-06-01 | B57: 2061 | C57: 0 | D57: 0 | E57: 0 | F57: 0 | G57: 18 | H57: 1798.4 | I57: £0-£5k | K57: =vRTADashboard[[#This Row],[Period]] -> 2015-06-01 | L57: =SUM(B45:B57) -> 26334 | M57: 0 | N57: 0 | O57: 0 | P57: 0 | Q57: 119
A58: 2015-07-01 | B58: 2356 | C58: 0 | D58: 0 | E58: 0 | F58: 0 | G58: 11 | H58: 2368.181818 | I58: £0-£5k | K58: =vRTADashboard[[#This Row],[Period]] -> 2015-07-01 | L58: =SUM(B46:B58) -> 26932 | M58: 0 | N58: 0 | O58: 0 | P58: 0 | Q58: 126
A59: 2015-08-01 | B59: 2243 | C59: 0 | D59: 0 | E59: 0 | F59: 0 | G59: 18 | H59: 1747.222222 | I59: £0-£5k | K59: =vRTADashboard[[#This Row],[Period]] -> 2015-08-01 | L59: =SUM(B47:B59) -> 27208 | M59: 0 | N59: 0 | O59: 0 | P59: 0 | Q59: 141
A60: 2015-09-01 | B60: 2385 | C60: 0 | D60: 0 | E60: 0 | F60: 0 | G60: 11 | H60: 1968.278181 | I60: £0-£5k | K60: =vRTADashboard[[#This Row],[Period]] -> 2015-09-01 | L60: =SUM(B48:B60) -> 27680 | M60: 0 | N60: 0 | O60: 0 | P60: 0 | Q60: 147
A61: 2015-10-01 | B61: 2222 | C61: 0 | D61: 0 | E61: 0 | F61: 0 | G61: 8 | H61: 1715.76375 | I61: £0-£5k | K61: =vRTADashboard[[#This Row],[Period]] -> 2015-10-01 | L61: =SUM(B49:B61) -> 27778 | M61: 0 | N61: 0 | O61: 0 | P61: 0 | Q61: 150
A62: 2015-11-01 | B62: 2070 | C62: 0 | D62: 0 | E62: 0 | F62: 0 | G62: 11 | H62: 2741.363636 | I62: £0-£5k | K62: =vRTADashboard[[#This Row],[Period]] -> 2015-11-01 | L62: =SUM(B50:B62) -> 27408 | M62: 0 | N62: 0 | O62: 0 | P62: 0 | Q62: 151
A63: 2015-12-01 | B63: 1612 | C63: 0 | D63: 0 | E63: 0 | F63: 0 | G63: 8 | H63: 2049.18875 | I63: £0-£5k | K63: =vRTADashboard[[#This Row],[Period]] -> 2015-12-01 | L63: =SUM(B51:B63) -> 26964 | M63: 0 | N63: 0 | O63: 0 | P63: 0 | Q63: 153
A64: 2016-01-01 | B64: 1989 | C64: 0 | D64: 0 | E64: 0 | F64: 0 | G64: 15 | H64: 1761.033333 | I64: £0-£5k | K64: =vRTADashboard[[#This Row],[Period]] -> 2016-01-01 | L64: =SUM(B52:B64) -> 27332 | M64: 0 | N64: 0 | O64: 0 | P64: 0 | Q64: 162
A65: 2016-02-01 | B65: 2045 | C65: 0 | D65: 0 | E65: 0 | F65: 0 | G65: 10 | H65: 2052.84 | I65: £0-£5k | K65: =vRTADashboard[[#This Row],[Period]] -> 2016-02-01 | L65: =SUM(B53:B65) -> 27354 | M65: 0 | N65: 0 | O65: 0 | P65: 0 | Q65: 159
A66: 2016-03-01 | B66: 2064 | C66: 0 | D66: 0 | E66: 0 | F66: 0 | G66: 14 | H66: 2086.947142 | I66: £0-£5k | K66: =vRTADashboard[[#This Row],[Period]] -> 2016-03-01 | L66: =SUM(B54:B66) -> 27401 | M66: 0 | N66: 0 | O66: 0 | P66: 0 | Q66: 163
A67: 2016-04-01 | B67: 2192 | C67: 0 | D67: 0 | E67: 0 | F67: 0 | G67: 16 | H67: 2194 | I67: £0-£5k | K67: =vRTADashboard[[#This Row],[Period]] -> 2016-04-01 | L67: =SUM(B55:B67) -> 27395 | M67: 0 | N67: 0 | O67: 0 | P67: 0 | Q67: 165
A68: 2016-05-01 | B68: 2084 | C68: 0 | D68: 0 | E68: 0 | F68: 0 | G68: 15 | H68: 1530 | I68: £0-£5k | K68: =vRTADashboard[[#This Row],[Period]] -> 2016-05-01 | L68: =SUM(B56:B68) -> 27340 | M68: 0 | N68: 0 | O68: 0 | P68: 0 | Q68: 164
A69: 2016-06-01 | B69: 2111 | C69: 0 | D69: 0 | E69: 0 | F69: 0 | G69: 18 | H69: 1840.111111 | I69: £0-£5k | K69: =vRTADashboard[[#This Row],[Period]] -> 2016-06-01 | L69: =SUM(B57:B69) -> 27434 | M69: 0 | N69: 0 | O69: 0 | P69: 0 | Q69: 173
A70: 2016-07-01 | B70: 1963 | C70: 0 | D70: 0 | E70: 0 | F70: 0 | G70: 24 | H70: 2556.708333 | I70: £0-£5k | K70: =vRTADashboard[[#This Row],[Period]] -> 2016-07-01 | L70: =SUM(B58:B70) -> 27336 | M70: 0 | N70: 0 | O70: 0 | P70: 0 | Q70: 179
A71: 2016-08-01 | B71: 2071 | C71: 0 | D71: 0 | E71: 0 | F71: 0 | G71: 15 | H71: 1985.674666 | I71: £0-£5k | K71: =vRTADashboard[[#This Row],[Period]] -> 2016-08-01 | L71: =SUM(B59:B71) -> 27051 | M71: 0 | N71: 0 | O71: 0 | P71: 0 | Q71: 183
A72: 2016-09-01 | B72: 2119 | C72: 0 | D72: 0 | E72: 0 | F72: 0 | G72: 20 | H72: 1911.6 | I72: £0-£5k | K72: =vRTADashboard[[#This Row],[Period]] -> 2016-09-01 | L72: =SUM(B60:B72) -> 26927 | M72: 0 | N72: 0 | O72: 0 | P72: 0 | Q72: 185
A73: 2016-10-01 | B73: 2846 | C73: 0 | D73: 0 | E73: 0 | F73: 0 | G73: 10 | H73: 2391 | I73: £0-£5k | K73: =vRTADashboard[[#This Row],[Period]] -> 2016-10-01 | L73: =SUM(B61:B73) -> 27388 | M73: 0 | N73: 0 | O73: 0 | P73: 0 | Q73: 184
A74: 2016-11-01 | B74: 5587 | C74: 0 | D74: 0 | E74: 0 | F74: 0 | G74: 21 | H74: 1679.428571 | I74: £0-£5k | K74: =vRTADashboard[[#This Row],[Period]] -> 2016-11-01 | L74: =SUM(B62:B74) -> 30753 | M74: 0 | N74: 0 | O74: 0 | P74: 0 | Q74: 197
A75: 2016-12-01 | B75: 6604 | C75: 0 | D75: 0 | E75: 0 | F75: 0 | G75: 14 | H75: 2218.85 | I75: £0-£5k | K75: =vRTADashboard[[#This Row],[Period]] -> 2016-12-01 | L75: =SUM(B63:B75) -> 35287 | M75: 0 | N75: 0 | O75: 0 | P75: 0 | Q75: 200
A76: 2017-01-01 | B76: 7665 | C76: 0 | D76: 0 | E76: 0 | F76: 0 | G76: 13 | H76: 2136.325384 | I76: £0-£5k | K76: =vRTADashboard[[#This Row],[Period]] -> 2017-01-01 | L76: =SUM(B64:B76) -> 41340 | M76: 0 | N76: 0 | O76: 0 | P76: 0 | Q76: 205
A77: 2017-02-01 | B77: 7253 | C77: 0 | D77: 0 | E77: 0 | F77: 0 | G77: 6 | H77: 2133.333333 | I77: £0-£5k | K77: =vRTADashboard[[#This Row],[Period]] -> 2017-02-01 | L77: =SUM(B65:B77) -> 46604 | M77: 0 | N77: 0 | O77: 0 | P77: 0 | Q77: 196
A78: 2017-03-01 | B78: 8228 | C78: 0 | D78: 0 | E78: 0 | F78: 0 | G78: 15 | H78: 1685.774666 | I78: £0-£5k | K78: =vRTADashboard[[#This Row],[Period]] -> 2017-03-01 | L78: =SUM(B66:B78) -> 52787 | M78: 0 | N78: 0 | O78: 0 | P78: 0 | Q78: 201
A79: 2017-04-01 | B79: 6362 | C79: 0 | D79: 0 | E79: 0 | F79: 0 | G79: 12 | H79: 2855.594166 | I79: £0-£5k | K79: =vRTADashboard[[#This Row],[Period]] -> 2017-04-01 | L79: =SUM(B67:B79) -> 57085 | M79: 0 | N79: 0 | O79: 0 | P79: 0 | Q79: 199
A80: 2017-05-01 | B80: 7032 | C80: 0 | D80: 0 | E80: 0 | F80: 0 | G80: 12 | H80: 2590.416666 | I80: £0-£5k | K80: =vRTADashboard[[#This Row],[Period]] -> 2017-05-01 | L80: =SUM(B68:B80) -> 61925 | M80: 0 | N80: 0 | O80: 0 | P80: 0 | Q80: 195
A81: 2017-06-01 | B81: 7211 | C81: 0 | D81: 0 | E81: 0 | F81: 0 | G81: 20 | H81: 2068.25 | I81: £0-£5k | K81: =vRTADashboard[[#This Row],[Period]] -> 2017-06-01 | L81: =SUM(B69:B81) -> 67052 | M81: 0 | N81: 0 | O81: 0 | P81: 0 | Q81: 200
A82: 2017-07-01 | B82: 6662 | C82: 0 | D82: 0 | E82: 0 | F82: 0 | G82: 13 | H82: 2030.76923 | I82: £0-£5k | K82: =vRTADashboard[[#This Row],[Period]] -> 2017-07-01 | L82: =SUM(B70:B82) -> 71603 | M82: 0 | N82: 0 | O82: 0 | P82: 0 | Q82: 195
A83: 2017-08-01 | B83: 6988 | C83: 0 | D83: 0 | E83: 0 | F83: 0 | G83: 9 | H83: 1683.333333 | I83: £0-£5k | K83: =vRTADashboard[[#This Row],[Period]] -> 2017-08-01 | L83: =SUM(B71:B83) -> 76628 | M83: 0 | N83: 0 | O83: 0 | P83: 0 | Q83: 180
A84: 2017-09-01 | B84: 6665 | C84: 0 | D84: 0 | E84: 0 | F84: 0 | G84: 15 | H84: 1663.333333 | I84: £0-£5k | K84: =vRTADashboard[[#This Row],[Period]] -> 2017-09-01 | L84: =SUM(B72:B84) -> 81222 | M84: 0 | N84: 0 | O84: 0 | P84: 0 | Q84: 180
A85: 2017-10-01 | B85: 7483 | C85: 0 | D85: 0 | E85: 0 | F85: 0 | G85: 23 | H85: 2194.130434 | I85: £0-£5k | K85: =vRTADashboard[[#This Row],[Period]] -> 2017-10-01 | L85: =SUM(B73:B85) -> 86586 | M85: 0 | N85: 0 | O85: 0 | P85: 0 | Q85: 183
A86: 2017-11-01 | B86: 7576 | C86: 0 | D86: 0 | E86: 0 | F86: 0 | G86: 15 | H86: 2298.321333 | I86: £0-£5k | K86: =vRTADashboard[[#This Row],[Period]] -> 2017-11-01 | L86: =SUM(B74:B86) -> 91316 | M86: 0 | N86: 0 | O86: 0 | P86: 0 | Q86: 188
A87: 2017-12-01 | B87: 5681 | C87: 0 | D87: 0 | E87: 0 | F87: 0 | G87: 11 | H87: 1892.045454 | I87: £0-£5k | K87: =vRTADashboard[[#This Row],[Period]] -> 2017-12-01 | L87: =SUM(B75:B87) -> 91410 | M87: 0 | N87: 0 | O87: 0 | P87: 0 | Q87: 178
A88: 2018-01-01 | B88: 7909 | C88: 0 | D88: 0 | E88: 0 | F88: 0 | G88: 16 | H88: 2365.990625 | I88: £0-£5k | K88: =vRTADashboard[[#This Row],[Period]] -> 2018-01-01 | L88: =SUM(B76:B88) -> 92715 | M88: 0 | N88: 0 | O88: 0 | P88: 0 | Q88: 180
A89: 2018-02-01 | B89: 7318 | C89: 0 | D89: 0 | E89: 0 | F89: 0 | G89: 20 | H89: 2102.901 | I89: £0-£5k | K89: =vRTADashboard[[#This Row],[Period]] -> 2018-02-01 | L89: =SUM(B77:B89) -> 92368 | M89: 0 | N89: 0 | O89: 0 | P89: 0 | Q89: 187
A90: 2018-03-01 | B90: 7071 | C90: 0 | D90: 0 | E90: 0 | F90: 0 | G90: 9 | H90: 2211.111111 | I90: £0-£5k | K90: =vRTADashboard[[#This Row],[Period]] -> 2018-03-01 | L90: =SUM(B78:B90) -> 92186 | M90: 0 | N90: 0 | O90: 0 | P90: 0 | Q90: 190
A91: 2018-04-01 | B91: 6968 | C91: 0 | D91: 0 | E91: 0 | F91: 0 | G91: 15 | H91: 2023.333333 | I91: £0-£5k | K91: =vRTADashboard[[#This Row],[Period]] -> 2018-04-01 | L91: =SUM(B79:B91) -> 90926 | M91: 0 | N91: 0 | O91: 0 | P91: 0 | Q91: 190
A92: 2018-05-01 | B92: 7538 | C92: 0 | D92: 0 | E92: 0 | F92: 0 | G92: 15 | H92: 2108.333333 | I92: £0-£5k | K92: =vRTADashboard[[#This Row],[Period]] -> 2018-05-01 | L92: =SUM(B80:B92) -> 92102 | M92: 0 | N92: 0 | O92: 0 | P92: 0 | Q92: 193
A93: 2018-06-01 | B93: 7100 | C93: 0 | D93: 0 | E93: 0 | F93: 0 | G93: 13 | H93: 1906.538461 | I93: £0-£5k | K93: =vRTADashboard[[#This Row],[Period]] -> 2018-06-01 | L93: =SUM(B81:B93) -> 92170 | M93: 0 | N93: 0 | O93: 0 | P93: 0 | Q93: 194
A94: 2018-07-01 | B94: 7973 | C94: 0 | D94: 0 | E94: 0 | F94: 0 | G94: 21 | H94: 1948.066666 | I94: £0-£5k | K94: =vRTADashboard[[#This Row],[Period]] -> 2018-07-01 | L94: =SUM(B82:B94) -> 92932 | M94: 0 | N94: 0 | O94: 0 | P94: 0 | Q94: 195
A95: 2018-08-01 | B95: 7857 | C95: 0 | D95: 0 | E95: 0 | F95: 0 | G95: 19 | H95: 2303.003157 | I95: £0-£5k | K95: =vRTADashboard[[#This Row],[Period]] -> 2018-08-01 | L95: =SUM(B83:B95) -> 94127 | M95: 0 | N95: 0 | O95: 0 | P95: 0 | Q95: 201
A96: 2018-09-01 | B96: 7708 | C96: 0 | D96: 0 | E96: 0 | F96: 0 | G96: 11 | H96: 2255.454545 | I96: £0-£5k | K96: =vRTADashboard[[#This Row],[Period]] -> 2018-09-01 | L96: =SUM(B84:B96) -> 94847 | M96: 0 | N96: 0 | O96: 0 | P96: 0 | Q96: 203
A97: 2018-10-01 | B97: 8842 | C97: 0 | D97: 0 | E97: 0 | F97: 0 | G97: 27 | H97: 2474.194074 | I97: £0-£5k | K97: =vRTADashboard[[#This Row],[Period]] -> 2018-10-01 | L97: =SUM(B85:B97) -> 97024 | M97: 0 | N97: 0 | O97: 0 | P97: 0 | Q97: 215
A98: 2018-11-01 | B98: 9080 | C98: 0 | D98: 0 | E98: 0 | F98: 0 | G98: 21 | H98: 2566.661904 | I98: £0-£5k | K98: =vRTADashboard[[#This Row],[Period]] -> 2018-11-01 | L98: =SUM(B86:B98) -> 98621 | M98: 0 | N98: 0 | O98: 0 | P98: 0 | Q98: 213
A99: 2018-12-01 | B99: 6802 | C99: 0 | D99: 0 | E99: 0 | F99: 0 | G99: 18 | H99: 2034.722222 | I99: £0-£5k | K99: =vRTADashboard[[#This Row],[Period]] -> 2018-12-01 | L99: =SUM(B87:B99) -> 97847 | M99: 0 | N99: 0 | O99: 0 | P99: 0 | Q99: 216
A100: 2019-01-01 | B100: 9519 | C100: 0 | D100: 0 | E100: 0 | F100: 0 | G100: 24 | H100: 2516.333333 | I100: £0-£5k | K100: =vRTADashboard[[#This Row],[Period]] -> 2019-01-01 | L100: =SUM(B88:B100) -> 101685 | M100: 0 | N100: 0 | O100: 0 | P100: 0 | Q100: 229
A101: 2019-02-01 | B101: 9054 | C101: 0 | D101: 0 | E101: 0 | F101: 0 | G101: 14 | H101: 2352.5 | I101: £0-£5k | K101: =vRTADashboard[[#This Row],[Period]] -> 2019-02-01 | L101: =SUM(B89:B101) -> 102830 | M101: 0 | N101: 0 | O101: 0 | P101: 0 | Q101: 227
A102: 2019-03-01 | B102: 9867 | C102: 0 | D102: 0 | E102: 0 | F102: 0 | G102: 35 | H102: 2305.714285 | I102: £0-£5k | K102: =vRTADashboard[[#This Row],[Period]] -> 2019-03-01 | L102: =SUM(B90:B102) -> 105379 | M102: 0 | N102: 0 | O102: 0 | P102: 0 | Q102: 242
A103: 2019-04-01 | B103: 9716 | C103: 0 | D103: 0 | E103: 0 | F103: 0 | G103: 21 | H103: 2778.965714 | I103: £0-£5k | K103: =vRTADashboard[[#This Row],[Period]] -> 2019-04-01 | L103: =SUM(B91:B103) -> 108024 | M103: 0 | N103: 0 | O103: 0 | P103: 0 | Q103: 254
A104: 2019-05-01 | B104: 10704 | C104: 0 | D104: 0 | E104: 0 | F104: 0 | G104: 12 | H104: 2224.583333 | I104: £0-£5k | K104: =vRTADashboard[[#This Row],[Period]] -> 2019-05-01 | L104: =SUM(B92:B104) -> 111760 | M104: 0 | N104: 0 | O104: 0 | P104: 0 | Q104: 251
A105: 2019-06-01 | B105: 10441 | C105: 0 | D105: 0 | E105: 0 | F105: 0 | G105: 20 | H105: 2682.577 | I105: £0-£5k | K105: =vRTADashboard[[#This Row],[Period]] -> 2019-06-01 | L105: =SUM(B93:B105) -> 114663 | M105: 0 | N105: 0 | O105: 0 | P105: 0 | Q105: 256
A106: 2019-07-01 | B106: 12272 | C106: 0 | D106: 0 | E106: 1 | F106: 0 | G106: 24 | H106: 2060.041666 | I106: £0-£5k | K106: =vRTADashboard[[#This Row],[Period]] -> 2019-07-01 | L106: =SUM(B94:B106) -> 119835 | M106: 0 | N106: 0 | O106: 1 | P106: 0 | Q106: 267
A107: 2019-08-01 | B107: 11115 | C107: 0 | D107: 0 | E107: 1 | F107: 0 | G107: 18 | H107: 2696.312222 | I107: £0-£5k | K107: =vRTADashboard[[#This Row],[Period]] -> 2019-08-01 | L107: =SUM(B95:B107) -> 122977 | M107: 0 | N107: 0 | O107: 2 | P107: 0 | Q107: 264
A108: 2019-09-01 | B108: 16195 | C108: 22 | D108: 0 | E108: 148 | F108: 56 | G108: 59 | H108: 3125.772711 | I108: £0-£5k | K108: =vRTADashboard[[#This Row],[Period]] -> 2019-09-01 | L108: =SUM(B96:B108) -> 131315 | M108: 22 | N108: 0 | O108: 150 | P108: 56 | Q108: 304
A109: 2019-10-01 | B109: 21189 | C109: 3413 | D109: 361 | E109: 4670 | F109: 1673 | G109: 823 | H109: 2921.133948 | I109: £0-£5k | K109: =vRTADashboard[[#This Row],[Period]] -> 2019-10-01 | L109: =SUM(B97:B109) -> 144796 | M109: 3435 | N109: 361 | O109: 4820 | P109: 1729 | Q109: 1116
A110: 2019-11-01 | B110: 20255 | C110: 3252 | D110: 303 | E110: 4521 | F110: 1611 | G110: 818 | H110: 2886.231503 | I110: £0-£5k | K110: =vRTADashboard[[#This Row],[Period]] -> 2019-11-01 | L110: =SUM(B98:B110) -> 156209 | M110: 6687 | N110: 664 | O110: 9341 | P110: 3340 | Q110: 1907
A111: 2019-12-01 | B111: 16970 | C111: 3273 | D111: 350 | E111: 4099 | F111: 1589 | G111: 799 | H111: 2837.736583 | I111: £0-£5k | K111: =vRTADashboard[[#This Row],[Period]] -> 2019-12-01 | L111: =SUM(B99:B111) -> 164099 | M111: 9960 | N111: 1014 | O111: 13440 | P111: 4929 | Q111: 2685
A112: 2020-01-01 | B112: 21074 | C112: 2951 | D112: 318 | E112: 3954 | F112: 1588 | G112: 1044 | H112: 2934.629176 | I112: £0-£5k | K112: =vRTADashboard[[#This Row],[Period]] -> 2020-01-01 | L112: =SUM(B100:B112) -> 178371 | M112: 12911 | N112: 1332 | O112: 17394 | P112: 6517 | Q112: 3711
A113: 2020-02-01 | B113: 20602 | C113: 3123 | D113: 384 | E113: 4482 | F113: 1516 | G113: 1013 | H113: 2886.810335 | I113: £0-£5k | K113: =vRTADashboard[[#This Row],[Period]] -> 2020-02-01 | L113: =SUM(B101:B113) -> 189454 | M113: 16034 | N113: 1716 | O113: 21876 | P113: 8033 | Q113: 4700
A114: 2020-03-01 | B114: 18651 | C114: 3457 | D114: 368 | E114: 4745 | F114: 1819 | G114: 1085 | H114: 2897.233834 | I114: £0-£5k | K114: =vRTADashboard[[#This Row],[Period]] -> 2020-03-01 | L114: =SUM(B102:B114) -> 199051 | M114: 19491 | N114: 2084 | O114: 26621 | P114: 9852 | Q114: 5771
A115: 2020-04-01 | B115: 9332 | C115: 2347 | D115: 335 | E115: 2716 | F115: 1553 | G115: 1106 | H115: 2962.667386 | I115: £0-£5k | K115: =vRTADashboard[[#This Row],[Period]] -> 2020-04-01 | L115: =SUM(B103:B115) -> 198516 | M115: 21838 | N115: 2419 | O115: 29337 | P115: 11405 | Q115: 6842
A116: 2020-05-01 | B116: 8940 | C116: 1551 | D116: 272 | E116: 2228 | F116: 1419 | G116: 816 | H116: 2986.317598 | I116: £0-£5k | K116: =vRTADashboard[[#This Row],[Period]] -> 2020-05-01 | L116: =SUM(B104:B116) -> 197740 | M116: 23389 | N116: 2691 | O116: 31565 | P116: 12824 | Q116: 7637
A117: 2020-06-01 | B117: 12868 | C117: 1988 | D117: 243 | E117: 2992 | F117: 1739 | G117: 806 | H117: 3058.217555 | I117: £0-£5k | K117: =vRTADashboard[[#This Row],[Period]] -> 2020-06-01 | L117: =SUM(B105:B117) -> 199904 | M117: 25377 | N117: 2934 | O117: 34557 | P117: 14563 | Q117: 8431
A118: 2020-07-01 | B118: 15823 | C118: 2276 | D118: 296 | E118: 3665 | F118: 1734 | G118: 751 | H118: 3077.349001 | I118: £0-£5k | K118: =vRTADashboard[[#This Row],[Period]] -> 2020-07-01 | L118: =SUM(B106:B118) -> 205286 | M118: 27653 | N118: 3230 | O118: 38222 | P118: 16297 | Q118: 9162
A119: 2020-08-01 | B119: 15538 | C119: 2237 | D119: 202 | E119: 3141 | F119: 1434 | G119: 607 | H119: 2880.133014 | I119: £0-£5k | K119: =vRTADashboard[[#This Row],[Period]] -> 2020-08-01 | L119: =SUM(B107:B119) -> 208552 | M119: 29890 | N119: 3432 | O119: 41362 | P119: 17731 | Q119: 9745
A120: 2020-09-01 | B120: 18583 | C120: 2494 | D120: 232 | E120: 3689 | F120: 1517 | G120: 749 | H120: 2961.417383 | I120: £0-£5k | K120: =vRTADashboard[[#This Row],[Period]] -> 2020-09-01 | L120: =SUM(B108:B120) -> 216020 | M120: 32384 | N120: 3664 | O120: 45050 | P120: 19248 | Q120: 10476
A121: 2020-10-01 | B121: 18906 | C121: 2734 | D121: 234 | E121: 4036 | F121: 1285 | G121: 763 | H121: 3043.035937 | I121: £0-£5k | K121: =vRTADashboard[[#This Row],[Period]] -> 2020-10-01 | L121: =SUM(B109:B121) -> 218731 | M121: 35096 | N121: 3898 | O121: 48938 | P121: 20477 | Q121: 11180
A122: 2020-11-01 | B122: 17676 | C122: 2312 | D122: 254 | E122: 3568 | F122: 1214 | G122: 894 | H122: 3151.064418 | I122: £0-£5k | K122: =vRTADashboard[[#This Row],[Period]] -> 2020-11-01 | L122: =SUM(B110:B122) -> 215218 | M122: 33995 | N122: 3791 | O122: 47836 | P122: 20018 | Q122: 11251
A123: 2020-12-01 | B123: 15488 | C123: 2072 | D123: 259 | E123: 7996 | F123: 1122 | G123: 758 | H123: 3098.89211 | I123: £0-£5k | K123: =vRTADashboard[[#This Row],[Period]] -> 2020-12-01 | L123: =SUM(B111:B123) -> 210451 | M123: 32815 | N123: 3747 | O123: 51311 | P123: 19529 | Q123: 11191
A124: 2021-01-01 | B124: 16835 | C124: 1609 | D124: 210 | E124: 3278 | F124: 1239 | G124: 743 | H124: 3125.897362 | I124: £0-£5k | K124: =vRTADashboard[[#This Row],[Period]] -> 2021-01-01 | L124: =SUM(B112:B124) -> 210316 | M124: 31151 | N124: 3607 | O124: 50490 | P124: 19179 | Q124: 11135
A125: 2021-02-01 | B125: 15004 | C125: 1738 | D125: 231 | E125: 3822 | F125: 1300 | G125: 912 | H125: 3148.510087 | I125: £0-£5k | K125: =vRTADashboard[[#This Row],[Period]] -> 2021-02-01 | L125: =SUM(B113:B125) -> 204246 | M125: 29938 | N125: 3520 | O125: 50358 | P125: 18891 | Q125: 11003
A126: 2021-03-01 | B126: 18931 | C126: 1974 | D126: 272 | E126: 3519 | F126: 1799 | G126: 953 | H126: 3254.455257 | I126: £0-£5k | K126: =vRTADashboard[[#This Row],[Period]] -> 2021-03-01 | L126: =SUM(B114:B126) -> 202575 | M126: 28789 | N126: 3408 | O126: 49395 | P126: 19174 | Q126: 10943
A127: 2021-04-01 | B127: 19139 | C127: 1974 | D127: 232 | E127: 3190 | F127: 1549 | G127: 765 | H127: 3274.486183 | I127: £0-£5k | K127: =vRTADashboard[[#This Row],[Period]] -> 2021-04-01 | L127: =SUM(B115:B127) -> 203063 | M127: 27306 | N127: 3272 | O127: 47840 | P127: 18904 | Q127: 10623
A128: 2021-05-01 | B128: 21109 | C128: 1756 | D128: 235 | E128: 3057 | F128: 1451 | G128: 731 | H128: 3063.813734 | I128: £0-£5k | K128: =vRTADashboard[[#This Row],[Period]] -> 2021-05-01 | L128: =SUM(B116:B128) -> 214840 | M128: 26715 | N128: 3172 | O128: 48181 | P128: 18802 | Q128: 10248
A129: 2021-06-01 | B129: 14991 | C129: 2227 | D129: 269 | E129: 3044 | F129: 1593 | G129: 821 | H129: 3351.744555 | I129: £0-£5k | K129: =vRTADashboard[[#This Row],[Period]] -> 2021-06-01 | L129: =SUM(B117:B129) -> 220891 | M129: 27391 | N129: 3169 | O129: 48997 | P129: 18976 | Q129: 10253
A130: 2021-07-01 | B130: 8936 | C130: 1248 | D130: 305 | E130: 2105 | F130: 1478 | G130: 660 | H130: 3521.613333 | I130: £0-£5k | K130: =vRTADashboard[[#This Row],[Period]] -> 2021-07-01 | L130: =SUM(B118:B130) -> 216959 | M130: 26651 | N130: 3231 | O130: 48110 | P130: 18715 | Q130: 10107
A131: 2021-08-01 | B131: 7164 | C131: 827 | D131: 286 | E131: 1554 | F131: 1422 | G131: 591 | H131: 3722.040355 | I131: £0-£5k | K131: =vRTADashboard[[#This Row],[Period]] -> 2021-08-01 | L131: =SUM(B119:B131) -> 208300 | M131: 25202 | N131: 3221 | O131: 45999 | P131: 18403 | Q131: 9947
A132: 2021-09-01 | B132: 10339 | C132: 1293 | D132: 300 | E132: 2249 | F132: 2042 | G132: 2142 | H132: 3750.331414 | I132: £0-£5k | K132: =vRTADashboard[[#This Row],[Period]] -> 2021-09-01 | L132: =SUM(B120:B132) -> 203101 | M132: 24258 | N132: 3319 | O132: 45107 | P132: 19011 | Q132: 11482
A133: 2021-10-01 | B133: 10121 | C133: 2387 | D133: 470 | E133: 4040 | F133: 3270 | G133: 4923 | H133: 3634.523755 | I133: £0-£5k | K133: =vRTADashboard[[#This Row],[Period]] -> 2021-10-01 | L133: =SUM(B121:B133) -> 194639 | M133: 24151 | N133: 3557 | O133: 45458 | P133: 20764 | Q133: 15656
A134: 2021-11-01 | B134: 9912 | C134: 2210 | D134: 449 | E134: 3918 | F134: 3058 | G134: 4631 | H134: 3925.126635 | I134: £0-£5k | K134: =vRTADashboard[[#This Row],[Period]] -> 2021-11-01 | L134: =SUM(B122:B134) -> 185645 | M134: 23627 | N134: 3772 | O134: 45340 | P134: 22537 | Q134: 19524
A135: 2021-12-01 | B135: 7725 | C135: 1914 | D135: 410 | E135: 3014 | F135: 2145 | G135: 3245 | H135: 4123.087701 | I135: £0-£5k | K135: =vRTADashboard[[#This Row],[Period]] -> 2021-12-01 | L135: =SUM(B123:B135) -> 175694 | M135: 23229 | N135: 3928 | O135: 44786 | P135: 23468 | Q135: 21875
A136: 2022-01-01 | B136: 8767 | C136: 1533 | D136: 236 | E136: 2693 | F136: 1960 | G136: 2869 | H136: 4200.614057 | I136: £0-£5k | K136: =vRTADashboard[[#This Row],[Period]] -> 2022-01-01 | L136: =SUM(B124:B136) -> 168973 | M136: 22690 | N136: 3905 | O136: 39483 | P136: 24306 | Q136: 23986
A137: 2022-02-01 | B137: 7907 | C137: 1815 | D137: 344 | E137: 2838 | F137: 1559 | G137: 2475 | H137: 4342.241438 | I137: £0-£5k | K137: =vRTADashboard[[#This Row],[Period]] -> 2022-02-01 | L137: =SUM(B125:B137) -> 160045 | M137: 22896 | N137: 4039 | O137: 39043 | P137: 24626 | Q137: 25718
A138: 2022-03-01 | B138: 8121 | C138: 1626 | D138: 356 | E138: 2811 | F138: 1524 | G138: 2167 | H138: 4525.187812 | I138: £0-£5k | K138: =vRTADashboard[[#This Row],[Period]] -> 2022-03-01 | L138: =SUM(B126:B138) -> 153162 | M138: 22784 | N138: 4164 | O138: 38032 | P138: 24850 | Q138: 26973
A139: 2022-04-01 | B139: 7287 | C139: 1481 | D139: 327 | E139: 2391 | F139: 1229 | G139: 1900 | H139: 4741.933489 | I139: £0-£5k | K139: =vRTADashboard[[#This Row],[Period]] -> 2022-04-01 | L139: =SUM(B127:B139) -> 141518 | M139: 22291 | N139: 4219 | O139: 36904 | P139: 24280 | Q139: 27920
A140: 2022-05-01 | B140: 7896 | C140: 1730 | D140: 315 | E140: 2673 | F140: 1221 | G140: 1877 | H140: 4824.597767 | I140: £0-£5k | K140: =vRTADashboard[[#This Row],[Period]] -> 2022-05-01 | L140: =SUM(B128:B140) -> 130275 | M140: 22047 | N140: 4302 | O140: 36387 | P140: 23952 | Q140: 29032
A141: 2022-06-01 | B141: 7285 | C141: 1652 | D141: 309 | E141: 2342 | F141: 1056 | G141: 1741 | H141: 4905.945887 | I141: £0-£5k | K141: =vRTADashboard[[#This Row],[Period]] -> 2022-06-01 | L141: =SUM(B129:B141) -> 116451 | M141: 21943 | N141: 4376 | O141: 35672 | P141: 23557 | Q141: 30042
A142: 2022-07-01 | B142: 7383 | C142: 1820 | D142: 331 | E142: 2292 | F142: 1071 | G142: 1436 | H142: 5390.887298 | I142: £5-£10k | K142: =vRTADashboard[[#This Row],[Period]] -> 2022-07-01 | L142: =SUM(B130:B142) -> 108843 | M142: 21536 | N142: 4438 | O142: 34920 | P142: 23035 | Q142: 30657
A143: 2022-08-01 | B143: 8129 | C143: 1885 | D143: 356 | E143: 2461 | F143: 1241 | G143: 1437 | H143: 5037.246743 | I143: £0-£5k | K143: =vRTADashboard[[#This Row],[Period]] -> 2022-08-01 | L143: =SUM(B131:B143) -> 108036 | M143: 22173 | N143: 4489 | O143: 35276 | P143: 22798 | Q143: 31434
A144: 2022-09-01 | B144: 7546 | C144: 1803 | D144: 405 | E144: 2302 | F144: 997 | G144: 1249 | H144: 5341.960232 | I144: £5-£10k | K144: =vRTADashboard[[#This Row],[Period]] -> 2022-09-01 | L144: =SUM(B132:B144) -> 108418 | M144: 23149 | N144: 4608 | O144: 36024 | P144: 22373 | Q144: 32092
A145: 2022-10-01 | B145: 7609 | C145: 1769 | D145: 331 | E145: 2260 | F145: 1122 | G145: 1298 | H145: 5408.307473 | I145: £5-£10k | K145: =vRTADashboard[[#This Row],[Period]] -> 2022-10-01 | L145: =SUM(B133:B145) -> 105688 | M145: 23625 | N145: 4639 | O145: 36035 | P145: 21453 | Q145: 31248
A146: 2022-11-01 | B146: 8321 | C146: 1937 | D146: 320 | E146: 2529 | F146: 1187 | G146: 1279 | H146: 5596.780359 | I146: £5-£10k | K146: =vRTADashboard[[#This Row],[Period]] -> 2022-11-01 | L146: =SUM(B134:B146) -> 103888 | M146: 23175 | N146: 4489 | O146: 34524 | P146: 19370 | Q146: 27604
A147: 2022-12-01 | B147: 6141 | C147: 1724 | D147: 331 | E147: 2059 | F147: 822 | G147: 991 | H147: 5370.09001 | I147: £5-£10k | K147: =vRTADashboard[[#This Row],[Period]] -> 2022-12-01 | L147: =SUM(B135:B147) -> 100117 | M147: 22689 | N147: 4371 | O147: 32665 | P147: 17134 | Q147: 23964
A148: 2023-01-01 | B148: 7401 | C148: 1491 | D148: 312 | E148: 2122 | F148: 1011 | G148: 1040 | H148: 5708.783451 | I148: £5-£10k | K148: =vRTADashboard[[#This Row],[Period]] -> 2023-01-01 | L148: =SUM(B136:B148) -> 99793 | M148: 22266 | N148: 4273 | O148: 31773 | P148: 16000 | Q148: 21759
A149: 2023-02-01 | B149: 7482 | C149: 1754 | D149: 396 | E149: 2106 | F149: 857 | G149: 952 | H149: 5577.042531 | I149: £5-£10k | K149: =vRTADashboard[[#This Row],[Period]] -> 2023-02-01 | L149: =SUM(B137:B149) -> 98508 | M149: 22487 | N149: 4433 | O149: 31186 | P149: 14897 | Q149: 19842
A150: 2023-03-01 | B150: 7469 | C150: 1912 | D150: 397 | E150: 2297 | F150: 1006 | G150: 890 | H150: 5130.413887 | I150: £0-£5k | K150: =vRTADashboard[[#This Row],[Period]] -> 2023-03-01 | L150: =SUM(B138:B150) -> 98070 | M150: 22584 | N150: 4486 | O150: 30645 | P150: 14344 | Q150: 18257
A151: 2023-04-01 | B151: 6116 | C151: 1213 | D151: 208 | E151: 1828 | F151: 695 | G151: 478 | H151: 5428.894456 | I151: £0-£5k | K151: =vRTADashboard[[#This Row],[Period]] -> 2023-04-01 | L151: =SUM(B139:B151) -> 96065 | M151: 22171 | N151: 4338 | O151: 29662 | P151: 13515 | Q151: 16568
A152: 2023-05-01 | B152: 6855 | C152: 1704 | D152: 321 | E152: 1895 | F152: 858 | G152: 563 | H152: 5166.994085 | I152: £0-£5k | K152: =vRTADashboard[[#This Row],[Period]] -> 2023-05-01 | L152: =SUM(B140:B152) -> 95633 | M152: 22394 | N152: 4332 | O152: 29166 | P152: 13144 | Q152: 15231
A153: 2023-06-01 | B153: 7700 | C153: 1967 | D153: 346 | E153: 2065 | F153: 819 | G153: 618 | H153: 5368.211035 | I153: £0-£5k | K153: =vRTADashboard[[#This Row],[Period]] -> 2023-06-01 | L153: =SUM(B141:B153) -> 95437 | M153: 22631 | N153: 4363 | O153: 28558 | P153: 12742 | Q153: 13972
A154: 2023-07-01 | B154: 7310 | C154: 1852 | D154: 287 | E154: 2460 | F154: 839 | G154: 602 | H154: 5404.624119 | I154: £0-£5k | K154: =vRTADashboard[[#This Row],[Period]] -> 2023-07-01 | L154: =SUM(B142:B154) -> 95462 | M154: 22831 | N154: 4341 | O154: 28676 | P154: 12525 | Q154: 12833
A155: 2023-08-01 | B155: 7472 | C155: 2005 | D155: 362 | E155: 2167 | F155: 774 | G155: 591 | H155: 5731.540287 | I155: £0-£5k | K155: =vRTADashboard[[#This Row],[Period]] -> 2023-08-01 | L155: =SUM(B143:B155) -> 95551 | M155: 23016 | N155: 4372 | O155: 28551 | P155: 12228 | Q155: 11988
A156: 2023-09-01 | B156: 6996 | C156: 1775 | D156: 341 | E156: 1866 | F156: 774 | G156: 474 | H156: 5040.881139 | I156: £0-£5k | K156: =vRTADashboard[[#This Row],[Period]] -> 2023-09-01 | L156: =SUM(B144:B156) -> 94418 | M156: 22906 | N156: 4357 | O156: 27956 | P156: 11761 | Q156: 11025
A157: 2023-10-01 | B157: 7827 | C157: 1958 | D157: 341 | E157: 2240 | F157: 811 | G157: 541 | H157: 5448.174916 | I157: £0-£5k | K157: =vRTADashboard[[#This Row],[Period]] -> 2023-10-01 | L157: =SUM(B145:B157) -> 94699 | M157: 23061 | N157: 4293 | O157: 27894 | P157: 11575 | Q157: 10317
A158: 2023-11-01 | B158: 7723 | C158: 1978 | D158: 350 | E158: 2114 | F158: 741 | G158: 568 | H158: 5398.174066 | I158: £0-£5k | K158: =vRTADashboard[[#This Row],[Period]] -> 2023-11-01 | L158: =SUM(B146:B158) -> 94813 | M158: 23270 | N158: 4312 | O158: 27748 | P158: 11194 | Q158: 9587
A159: 2023-12-01 | B159: 5701 | C159: 1537 | D159: 332 | E159: 1752 | F159: 670 | G159: 438 | H159: 5740.8571 | I159: £0-£5k | K159: =vRTADashboard[[#This Row],[Period]] -> 2023-12-01 | L159: =SUM(B147:B159) -> 92193 | M159: 22870 | N159: 4324 | O159: 26971 | P159: 10677 | Q159: 8746
A160: 2024-01-01 | B160: 7526 | C160: 1347 | D160: 246 | E160: 1684 | F160: 597 | G160: 381 | H160: 5451.142519 | I160: £0-£5k | K160: =vRTADashboard[[#This Row],[Period]] -> 2024-01-01 | L160: =SUM(B148:B160) -> 93578 | M160: 22493 | N160: 4239 | O160: 26596 | P160: 10452 | Q160: 8136
A161: 2024-02-01 | B161: 7257 | C161: 1652 | D161: 276 | E161: 2828 | F161: 612 | G161: 669 | H161: 6031.172526 | I161: £5-£10k | K161: =vRTADashboard[[#This Row],[Period]] -> 2024-02-01 | L161: =SUM(B149:B161) -> 93434 | M161: 22654 | N161: 4203 | O161: 27302 | P161: 10053 | Q161: 7765
A162: 2024-03-01 | B162: 6813 | C162: 1581 | D162: 294 | E162: 2675 | F162: 522 | G162: 584 | H162: 5721.065068 | I162: £5-£10k | K162: =vRTADashboard[[#This Row],[Period]] -> 2024-03-01 | L162: =SUM(B150:B162) -> 92765 | M162: 22481 | N162: 4101 | O162: 27871 | P162: 9718 | Q162: 7397
A163: 2024-04-01 | B163: 7631 | C163: 1690 | D163: 276 | E163: 2110 | F163: 609 | G163: 603 | H163: 6221.389137 | I163: £5-£10k | K163: =vRTADashboard[[#This Row],[Period]] -> 2024-04-01 | L163: =SUM(B151:B163) -> 92927 | M163: 22259 | N163: 3980 | O163: 27684 | P163: 9321 | Q163: 7110
A164: 2024-05-01 | B164: 7112 | C164: 1669 | D164: 327 | E164: 2206 | F164: 656 | G164: 582 | H164: 6404.659931 | I164: £5-£10k | K164: =vRTADashboard[[#This Row],[Period]] -> 2024-05-01 | L164: =SUM(B152:B164) -> 93923 | M164: 22715 | N164: 4099 | O164: 28062 | P164: 9282 | Q164: 7214
A165: 2024-06-01 | B165: 6943 | C165: 1768 | D165: 277 | E165: 1874 | F165: 600 | G165: 614 | H165: 6639.581693 | I165: £5-£10k | K165: =vRTADashboard[[#This Row],[Period]] -> 2024-06-01 | L165: =SUM(B153:B165) -> 94011 | M165: 22779 | N165: 4055 | O165: 28041 | P165: 9024 | Q165: 7265
A166: 2024-07-01 | B166: 8151 | C166: 2206 | D166: 379 | E166: 2201 | F166: 716 | G166: 635 | H166: 6282.994598 | I166: £5-£10k | K166: =vRTADashboard[[#This Row],[Period]] -> 2024-07-01 | L166: =SUM(B154:B166) -> 94462 | M166: 23018 | N166: 4088 | O166: 28177 | P166: 8921 | Q166: 7282
A167: 2024-08-01 | B167: 7124 | C167: 1917 | D167: 346 | E167: 2075 | F167: 617 | G167: 607 | H167: 6735.441894 | I167: £5-£10k | K167: =vRTADashboard[[#This Row],[Period]] -> 2024-08-01 | L167: =SUM(B155:B167) -> 94276 | M167: 23083 | N167: 4147 | O167: 27792 | P167: 8699 | Q167: 7287
A168: 2024-09-01 | B168: 7356 | C168: 1743 | D168: 315 | E168: 1988 | F168: 652 | G168: 611 | H168: 6477.583862 | I168: £5-£10k | K168: =vRTADashboard[[#This Row],[Period]] -> 2024-09-01 | L168: =SUM(B156:B168) -> 94160 | M168: 22821 | N168: 4100 | O168: 27613 | P168: 8577 | Q168: 7307
A169: 2024-10-01 | B169: 8230 | C169: 2146 | D169: 365 | E169: 2421 | F169: 749 | G169: 692 | H169: 6923.560679 | I169: £5-£10k | K169: =vRTADashboard[[#This Row],[Period]] -> 2024-10-01 | L169: =SUM(B157:B169) -> 95394 | M169: 23192 | N169: 4124 | O169: 28168 | P169: 8552 | Q169: 7525
A170: 2024-11-01 | B170: 6967 | C170: 1735 | D170: 318 | E170: 2117 | F170: 737 | G170: 659 | H170: 6713.029802 | I170: £5-£10k | K170: =vRTADashboard[[#This Row],[Period]] -> 2024-11-01 | L170: =SUM(B158:B170) -> 94534 | M170: 22969 | N170: 4101 | O170: 28045 | P170: 8478 | Q170: 7643
A171: 2024-12-01 | B171: 6021 | C171: 1581 | D171: 295 | E171: 1791 | F171: 662 | G171: 585 | H171: 7036.349487 | I171: £5-£10k | K171: =vRTADashboard[[#This Row],[Period]] -> 2024-12-01 | L171: =SUM(B159:B171) -> 92832 | M171: 22572 | N171: 4046 | O171: 27722 | P171: 8399 | Q171: 7660
A172: 2025-01-01 | B172: 7066 | C172: 1559 | D172: 263 | E172: 1803 | F172: 671 | G172: 656 | H172: 6547.547545 | I172: £5-£10k | K172: =vRTADashboard[[#This Row],[Period]] -> 2025-01-01 | L172: =SUM(B160:B172) -> 94197 | M172: 22594 | N172: 3977 | O172: 27773 | P172: 8400 | Q172: 7878
A173: 2025-02-01 | B173: 6755 | C173: 1519 | D173: 327 | E173: 1874 | F173: 674 | G173: 592 | H173: 6697.964949 | I173: £5-£10k | K173: =vRTADashboard[[#This Row],[Period]] -> 2025-02-01 | L173: =SUM(B161:B173) -> 93426 | M173: 22766 | N173: 4058 | O173: 27963 | P173: 8477 | Q173: 8089
A174: 2025-03-01 | B174: 6789 | C174: 1425 | D174: 295 | E174: 1978 | F174: 705 | G174: 701 | H174: 6539.189572 | I174: £5-£10k | K174: =vRTADashboard[[#This Row],[Period]] -> 2025-03-01 | L174: =SUM(B162:B174) -> 92958 | M174: 22539 | N174: 4077 | O174: 27113 | P174: 8570 | Q174: 8121
A175: 2025-04-01 | B175: 6976 | C175: 1441 | D175: 256 | E175: 2253 | F175: 671 | G175: 654 | H175: 6375.824495 | I175: £5-£10k | K175: =vRTADashboard[[#This Row],[Period]] -> 2025-04-01 | L175: =SUM(B163:B175) -> 93121 | M175: =SUM(C163:C175) -> 22399 | N175: =SUM(D163:D175) -> 4039 | O175: =SUM(E163:E175) -> 26691 | P175: =SUM(F163:F175) -> 8719 | Q175: =SUM(G163:G175) -> 8191
A176: 2025-05-01 | B176: 6936 | C176: 1443 | D176: 221 | E176: 1990 | F176: 668 | G176: 607 | H176: 6499.414991 | I176: £5-£10k | K176: =vRTADashboard[[#This Row],[Period]] -> 2025-05-01 | L176: 92426 | M176: 22152 | N176: 3984 | O176: 26571 | P176: 8778 | Q176: 8195
A177: 2025-06-01 | B177: 7141 | C177: 1568 | D177: 242 | E177: 2128 | F177: 744 | G177: 715 | H177: 7003.106433 | I177: £5-£10k | K177: =vRTADashboard[[#This Row],[Period]] -> 2025-06-01 | L177: 92455 | M177: 22051 | N177: 3899 | O177: 26493 | P177: 8866 | Q177: 8328
A178: 2025-07-01 | B178: 7284 | C178: 1686 | D178: 294 | E178: 2266 | F178: 854 | G178: 724 | H178: 6839.777955 | I178: £5-£10k | K178: =vRTADashboard[[#This Row],[Period]] -> 2025-07-01 | L178: =SUM(B166:B178) -> 92796 | M178: =SUM(C166:C178) -> 21969 | N178: =SUM(D166:D178) -> 3916 | O178: =SUM(E166:E178) -> 26885 | P178: =SUM(F166:F178) -> 9120 | Q178: =SUM(G166:G178) -> 8438
A179: 2025-08-01 | B179: 6303 | C179: 1485 | D179: 224 | E179: 1888 | F179: 618 | G179: 641 | H179: 6751.701528 | I179: £5-£10k | K179: =vRTADashboard[[#This Row],[Period]] -> 2025-08-01 | L179: 90948 | M179: 21248 | N179: 3761 | O179: 26572 | P179: 9022 | Q179: 8444
A180: 2025-09-01 | B180: 7253 | C180: 1686 | D180: 232 | E180: 2127 | F180: 672 | G180: 774 | H180: 5885.983423 | I180: £5-£10k | K180: =vRTADashboard[[#This Row],[Period]] -> 2025-09-01 | L180: 91077 | M180: 21017 | N180: 3647 | O180: 26624 | P180: 9077 | Q180: 8611
A181: 2025-10-01 | C181: 57 | D181: 13 | E181: 0 | F181: 0 | G181: 0

Sheet RTA vExitReasonCounts (hidden)
A1: Exit Process Reason | B1: Ttal
A2: Claim is too complex for process | B2: 594
A3: Claim requires further investigation | B3: 34444
A4: Duplicated claim | B4: 2407
A5: Incomplete information provided on CNF | B5: 865
A6: Interim payment for child claimant | B6: 19
A7: Interim Payment partial offer not accepted | B7: 29
A8: Interim Payment request not answered and/or paid on time | B8: 189
A9: Other | B9: 26445
A10: Stage 1 costs not paid on time | B10: 976
A11: Value of claim below £1,000 | B11: 16
A12: Value of claim exceeds the upper limit | B12: 1556
A13: Withdrawal of offer | B13: 407
A14: Withdrawl of claim | B14: 302
A15: Wrong Portal | B15: 7964
A16: Grand Total | B16: 76213
